Workbook

Sheet Caratula
B5: E S T A D O S C O N T A B L E S
B10: DENOMINACION: NICOLAS GONZALEZ ODDONE S.A.E.C.A.
B13: DOMICÍLIO LEGAL: DOMINICANA ESQUINA VIA FERREA
B16: ACTIVIDAD PRINCIPAL: IMPORTACIONES
B19: INSCRIPCION EN EL REGISTRO PUBLICO DE COMERCIO Nº 106 DEL 03/06/64 Y Nº 186 DEL 11/04/96 DE LOS ESTATUTOS SOCIALES Y SUS MODIFICACIONES. -
B22: INSCRIPCION EN LA COMISION NACIONAL DE VALORES: N.º 058 RESOL. Nº 270/96
B25: FECHA DE VENCIMIENTO DEL ESTATUTO SOCIAL: AÑO 2094

Sheet Indice
C1: NICOLAS GONZALEZ ODDONE S.A.E.C.A
S2: 1 | T2: Enero
B3: ESTADOS CONTABLES AL 31/03/2020 | C3: ESTADOS CONTABLES AL 30/09/2020 | S3: 5 | T3: Mayo
S4: 6 | T4: Junio
S5: 7 | T5: Julio
C6: INDICE | D6: REF. | S6: 8 | T6: Agosto
B7: Informacion General | S7: 9 | T7: Septiembre
C8: Descripción de la naturaleza y del negocio de la Sociedad | D8: Nota 1 | S8: 10 | T8: Octubre
C9: Resumen de las principales políticas contables | D9: Nota 2 | S9: 11 | T9: Noviembre
B10: Balance General | D10: BG | S10: 12 | T10: Diciembre
C11: Efectivo y equivalente de efectivo | D11: Nota 3
C12: Inversiones temporales | D12: Nota 4
C13: Cuentas por cobrar comerciales | D13: Nota 5
C14: Otros créditos | D14: Nota 6
C15: Inventarios | D15: Nota 7
C16: Inversión en asociadas | D16: Nota 8
C17: Propiedades, planta y equipo | D17: Nota 9
C18: Activos disponibles para la venta | D18: Nota 10
C19: Activos intangibles | D19: Nota 11
C20: Goodwill | D20: Nota 12
C21: Otros Activos | D21: Nota 41
C22: Cuentas por pagar proveedores | D22: Nota 13
C23: Préstamos a corto plazo | D23: Nota 14
C24: Porción corriente de la deuda a largo plazo | D24: Nota 15
C25: Remuneraciones y cargas sociales a pagar | D25: Nota 16
C26: Impuestos a pagar | D26: Nota 17
C27: Provisiones | D27: Nota 18
C28: Otros pasivos corrientes | D28: Nota 19
C29: Capital integrado | D29: Nota 20
C30: Reserva de revalúo | D30: Nota 21
C31: Reserva legal | D31: Nota 21
C32: Reservas estatutarias | D32: Nota 21
C33: Reservas facultativas | D33: Nota 21
C34: Diferencia transitoria por conversión | D34: Nota 22
C35: Resultados acumulados | D35: Nota 23
C36: Interés minoritario | D36: Nota 24
B37: Estado de Resultados | D37: ER
C38: Ventas | D38: Nota 25
C39: Costo de ventas | D39: Nota 26
C40: Gastos de ventas | D40: Nota 27
C41: Gastos administrativos | D41: Nota 27
C42: Otros ingresos y gastos operativos/ No Operativos | D42: Nota 28
C43: Ingresos financieros - neto/ Inversiones | D43: Nota 29
C44: Gastos financieros - neto | D44: Nota 29
C45: Resultado de inversiones en asociadas | D45: Nota 30
C46: Resultado participación minoritaria | D46: Nota 31
C47: Impuesto a la renta | D47: Nota 32
C48: Resultado extraordinario neto de impuesto a la renta | D48: Nota 33
C49: Resultado sobre actividades discontinuadas neto de impuesto a la renta | D49: Nota 34
C50: Utilidad/(Pérdida) neta del año | D50: Nota 35
C51: Utilidad neta por acción ordinaria | D51: Nota 35
B52: Estado de Evolución del Patrimonio Neto | D52: EVPN
B53: Estado de Flujos de Efectivo | D53: EFE
B54: Otras Notas de los Estados Financieros
C55: Activos gravados | D55: Nota 36
C56: Contingencias y compromisos | D56: Nota 37
C57: Impuesto diferido | D57: Nota 38
C58: Hechos posteriores | D58: Nota 39
C59: Saldos y transacciones con partes relacionadas | D59: Nota 40

Sheet BG
C1: =[1]Indice!C1 -> NICOLAS GONZALEZ ODDONE S.A.E.C.A | D1: Indice
C3: BALANCE GENERAL AL 30 DE SETIEMBRE DE 2020 COMPARATIVO CON CIFRAS AL 31 DE DICIEMBRE DE 2019
D5: Nota | E5: 2020-09-30 | F5: 2019-12-31
C6: En miles de guaraníes
A8: ACTIVOS
A9: Activos Corrientes
B10: Efectivo y equivalente de efectivo | D10: 3 | E10: ='Nota 3'!C20 -> 77990864695 | F10: ='[1]Nota 3'!D20 -> 97761526232
B11: Inversiones Temporales | D11: 4 | E11: ='Nota 4'!B17 -> 170560051546 | F11: ='[1]Nota 4'!C15 -> 44275981956
B12: Cuentas por Cobrar Comerciales | D12: 5 | E12: ='Nota 5'!C19 -> 290184371933 | F12: =+'[1]Nota 5'!D18 -> 2.630307227e+11
B13: Otros Créditos | D13: 6 | E13: ='Nota 6'!B51 -> 5683101767 | F13: =+'[1]Nota 6'!C38+'[1]Nota 6'!C47 -> 9270297213
B14: Inventarios | D14: 7 | E14: ='Nota 7'!B26 -> 319728589900 | F14: =+'[1]Nota 7'!C20+'[1]Nota 7'!C25 -> 344616645121
B15: Otros Activos Corrientes | D15: 6 | E15: ='Nota 6'!B66 -> 335812624 | F15: =+'[1]Nota 6'!C63 -> 0
B16: TOTAL ACTIVO CORRIENTES | E16: =SUM(E10:E15) -> 864482792465 | F16: =SUM(F10:F15) -> 7.589551732e+11
A18: Activos no corrientes
B19: Otros créditos | D19: 6 | E19: ='Nota 6'!F11 -> 0 | F19: ='[1]Nota 6'!G11 -> 2019685489
B20: Créditos por Ventas | C20: Cuentas por Cobrar Comerciales | D20: 5 | E20: ='Nota 5'!C28 -> 362020491 | F20: =+'[1]Nota 5'!D27 -> 2346776684
B21: Inversiones en Asociadas | D21: 8 | E21: ='[1]Nota 8'!B10 -> 32213537431 | F21: ='[1]Nota 8'!C10 -> 32213537431
B22: Propiedad, planta y equipo | D22: 9 | E22: ='Nota 9'!L55 -> 343581983268 | F22: ='[1]Nota 9'!M55 -> 329376781336
B23: Inventarios | D23: 7 | E23: ='Nota 7'!B35 -> 1568552657 | F23: ='[1]Nota 7'!C37 -> 1243344831
B24: Activos disponibles para la Venta | D24: 10 | E24: ='[1]Nota 7'!B38 -> 0 | F24: 0
B25: Activos Intangibles | D25: 11 | E25: ='Nota 11'!B32 -> 2954526483 | F25: ='[1]Nota 11'!C32 -> 3951168574
B26: Goodwill | D26: 12 | E26: ='[1]Nota 12'!B11 -> 0 | F26: ='[1]Nota 12'!C11 -> 0
B27: Inversiones Inmobiliarias | D27: 10 | E27: ='Nota 10'!B29 -> 42744778105 | F27: ='Nota 10'!C29 -> 39901934764
B28: Total activos no corrientes | E28: =SUM(E19:E27) -> 423425398435 | F28: =SUM(F19:F27) -> 411053229109
A30: TOTAL ACTIVOS | E30: =+E16+E28 -> 1287908190900 | F30: =+F16+F28 -> 1.170008402e+12
A31: PASIVOS Y PATRIMONIO NETO
A33: Pasivo Corrientes | E33: -1
B34: Cuentas a Pagar - Comerciales | D34: 13 | E34: ='Nota 13'!B39 -> 20920950186 | F34: =+'Nota 13'!C39 -> 38694553008
B35: Prestamos a corto plazo | D35: 14 | E35: ='Nota 14'!E26 -> 219287827301 | F35: ='[1]Nota 14'!K26 -> 121455939859
B36: Remuneraciones y cargas sociales a pagar | D36: 16 | E36: ='Nota 16'!B20 -> 1637379651 | F36: =+'[1]Nota 16'!C13+'[1]Nota 16'!C17 -> 2054589083
B37: Impuestos a Pagar | D37: 17 | E37: ='Nota 17'!B15 -> 4859243763 | F37: ='[1]Nota 17'!C12 -> 1507992706
B38: Provisiones | D38: 18 | E38: ='Nota 18'!B34+'Nota 18'!B48 -> 18425072788 | F38: =18182378518+'[1]Nota 18'!C47 -> 18456446493
B39: Otros pasivos corrientes | D39: 19 | E39: ='Nota 19'!B24 -> 2892631157 | F39: =+'Nota 19'!C24 -> 10273890797
B40: Total Pasivos Corrientes | E40: =SUM(E33:E39) -> 268023104845 | F40: =SUM(F34:F39) -> 192443411946
A42: Pasivos no corrientes
B43: Préstamos a largo plazo | E43: 0 | F43: 0
B44: Otros pasivos no corrientes | E44: 0 | F44: 0
B45: Total pasivos no corrientes | E45: 0 | F45: 0
A47: TOTAL PASIVOS | E47: =+E40+E45 -> 268023104845 | F47: =+F40+F45 -> 192443411946
A48: PATRIMONIO NETO
B49: Capital integrado | D49: 20 | E49: ='[1]Nota 20'!B6 -> 643227002000 | F49: ='[1]Nota 20'!C6 -> 643227002000
B50: Reserva de revalúo | D50: 21 | E50: ='[1] Nota 21'!B9 -> 178972541980 | F50: ='[1] Nota 21'!C9 -> 178972541980
B51: Reserva legal | D51: 21 | E51: =' Nota 21'!B15 -> 50198695192 | F51: ='[1] Nota 21'!C14+'[1] Nota 21'!C13 -> 46478390374
B52: Reservas de Capitalización | D52: 21 | E52: =+' Nota 21'!B31+' Nota 21'!B37+1 -> 80073295210 | F52: =+'[1] Nota 21'!C30+'[1] Nota 21'!C37 -> 34480959662
B53: Reservas facultatitvas | D53: 21 | E53: ='[1] Nota 21'!B22 -> 0 | F53: ='[1] Nota 21'!C22 -> 0
B54: Diferencia transitoria por conversión | D54: 22 | E54: ='[1]Nota 22'!B7 -> 0 | F54: ='[1]Nota 22'!C7 -> 0
B55: Resultados acumulados | D55: 23 | E55: 0 | F55: 0
B56: Resultados del ejercicio | D56: 23 | E56: ='Nota 23'!B9 -> 67413551673 | F56: ='[1]Nota 23'!C8 -> 74406096363
B57: Subtotal | E57: =SUM(E49:E56) -> 1019885086055 | F57: =SUM(F49:F56) -> 977564990379
B58: Interés minoritario | D58: 24 | E58: 0 | F58: ='[1]Nota 24'!C7 -> 0
A59: TOTAL PATRIMONIO NETO | E59: =E57 -> 1019885086055 | F59: =F57 -> 977564990379
A60: TOTAL PASIVO Y PATRIMONIO NETO | E60: =+E47+E59 -> 1287908190900 | F60: =F47+F59 -> 1170008402325
A62: Las notas que se acompañan forman parte integrante de estos estados.

Sheet EVPN
A1: =[2]Indice!C1 -> NICOLAS GONZALEZ ODDONE S.A.E.C.A | I1: Indice
G4: ESTADO DE EVOLUCIÓN DEL PATRIMONIO NETO
G5: AL 30 DE SETIEMBRE DE 2020
A6: Comparativo con igual periodo del año anterior
A7: (En miles de guaraníes)
C10: Aporte de los propietarios | M10: Ganancias reservadas
C11: Capital suscripto e integrado | E11: Acciones en Tesoreria | G11: Primas de emisión | I11: Reserva de revalúo | K11: Reserva de revalúo técnico | M11: Reserva legal | O11: Reserva P/ Capitalizacion | R11: Resultados acumulados | T11: Resultado del Ejercicio | U11: Interes Minoritario | W11: Total
R12: Total | T12: Total
A14: Saldo al 31 de Diciembre 2018 | C14: 270000000000 | E14: -144200000 | G14: =8329302000-47385000 -> 8281917000 | I14: =52949779497+29131439763+379404818+150970387 -> 82611594465 | K14: 87405000939 | M14: 43132145220 | O14: 365041931517 | R14: 0 | T14: 56789988725 | U14: 0 | W14: =+C14+E14+G14+I14+K14+M14+O14+R14+U14+T14 -> 913118377866 | X14: =913118377866-W14 -> 0
A15: Cambio en política contable
A16: Saldo reestructurado | C16: 270000000000 | E16: =+E14 -> -144200000 | G16: =+G14 -> 8281917000 | I16: =+I14 -> 82611594465 | K16: =+K14 -> 87405000939 | M16: =+M14 -> 43132145220 | O16: =+O14 -> 365041931517 | R16: =+R14 -> 0 | T16: =+T14 -> 56789988725 | U16: =+U14 -> 0 | W16: =+C16+E16+G16+I16+K16+M16+O16+R16+U16+T16 -> 913118377866
A17: Distribución de dividendos s/Acta de Asamblea Ordinaria N° 90 de fecha 23/04/2019 | C17: 0 | E17: 0 | G17: 0 | I17: 0 | K17: 0 | M17: 2839499436 | N17: 0 | O17: 34528313145 | R17: =-M17-O17 -> -37367812581 | T17: 0 | W17: =SUM(C17:T17) -> 0
A18: Dividendos pagados | C18: 0 | E18: 0 | G18: 0 | I18: 0 | K18: 0 | M18: 0 | O18: 0 | R18: -19422176144 | T18: 0 | W18: =SUM(C18:T18) -> -19422176144
A19: Transferencia a Resultados Acumulados | C19: 0 | E19: 0 | G19: 0 | I19: 0 | K19: 0 | M19: 0 | O19: 0 | R19: 56789988725 | T19: =-R19 -> -56789988725 | W19: =SUM(C19:T19) -> 0
A20: Integración del capital social | C20: 30000000000 | E20: 0 | G20: 0 | I20: 0 | K20: 0 | M20: 0 | O20: =-C20 -> -30000000000 | R20: 0 | T20: 0 | W20: 0
A21: Reducción del capital social s/Acta de Asamblea General Ordinaria N°… de fecha…….. | C21: 0 | E21: 0 | G21: 0 | I21: 0 | K21: 0 | M21: 0 | N21: 0 | O21: 0 | R21: 0 | T21: 0 | W21: 0
A22: Revalúo de activos fijos | C22: 0 | E22: 0 | G22: 0 | I22: 4848139985 | K22: 0 | M22: 0 | O22: 0 | R22: 0 | T22: 0 | W22: 4848139985
A23: Revalúo técnico | C23: 0 | E23: 0 | G23: 0 | I23: 0 | K23: 0 | M23: 0 | O23: 0 | R23: 0 | T23: 0 | W23: 0
A24: Resultado del año | C24: 0 | E24: 0 | G24: 0 | I24: 0 | K24: 0 | M24: 0 | O24: 0 | R24: 0 | T24: 52663890125 | W24: 52663890125
A26: Saldo al 30/09/19 | C26: =C16+C17+C20+C21+C22+C23+C24 -> 300000000000 | E26: =E16+E17+E20+E21+E22+E23+E24 -> -144200000 | G26: =G16+G17+G20+G21+G22+G23+G24 -> 8281917000 | H26: =SUM(H14:H25) -> 0 | I26: =I16+I17+I20+I21+I22+I23+I24 -> 87459734450 | K26: =K16+K17+K20+K21+K22+K23+K24 -> 87405000939 | M26: =M16+M17+M20+M21+M22+M23+M24 -> 45971644656 | O26: =O16+O17+O20+O21+O22+O23+O24 -> 369570244662 | R26: =SUM(R16:R25) -> 0 | T26: =T16+T17+T20+T21+T22+T23+T24+T19 -> 52663890125 | U26: =U16+U17+U20+U21+U22+U23+U24 -> 0 | W26: =+C26+E26+G26+I26+K26+M26+O26+R26+U26+T26 -> 951208231832
A28: Saldo al 31 de Diciembre de 2019 | C28: 635041900000 | E28: -144200000 | G28: =8329302000-47385000 -> 8281917000 | H28: =SUM(H16:H27) -> 0 | I28: =57008661721+472930672+107394557+33978554091 -> 91567541041 | K28: 87405000939 | M28: =45971644656+506745718 -> 46478390374 | O28: 34528344662 | R28: 0 | T28: 74406096363 | U28: =U19+U20+U22+U23+U24+U25+U26 -> 0 | W28: =+C28+E28+G28+I28+K28+M28+O28+R28+U28+T28 -> 977564990379
A29: Transferencia a Resultados Acumulados | C29: 0 | E29: 0 | G29: 0 | I29: 0 | K29: 0 | M29: 0 | O29: 0 | R29: 74406096363 | T29: =-R29 -> -74406096363 | W29: =+R29+T29 -> 0
A30: Distribución de dividendos s/Acta de Asamblea General Ordinaria N°92 de fecha 30/06/2020 | M30: 3720304818 | O30: 45592335547 | R30: =-M30-O30 -> -49312640365 | T30: 0 | W30: 0
A31: Dividendos pagados | M31: 0 | O31: 0 | R31: -25093455998 | W31: =+R31 -> -25093455998
A32: Revalúo de activos fijos | C32: 0 | E32: 0 | G32: 0 | I32: 0 | K32: 0 | M32: 0 | O32: 0 | R32: 0 | W32: =+R32 -> 0
A33: Desafectación de la reserva de revalúo técnico
A35: Resultado del año | T35: 67413551673 | W35: =+T35 -> 67413551673
A37: Saldo al 30/09/2020 | C37: =C28+C30+C32+C33+C35 -> 635041900000 | D37: =SUM(D26:D35) -> 0 | E37: =E28+E30+E32+E33+E35 -> -144200000 | G37: =G28+G30+G32+G33+G35 -> 8281917000 | I37: =I28+I30+I32+I33+I35 -> 91567541041 | K37: =K28+K30+K32+K33+K35 -> 87405000939 | M37: =M28+M30+M32+M33+M35 -> 50198695192 | O37: =O28+O30+O32+O33+O35 -> 80120680209 | R37: =SUM(R28:R33) -> 0 | T37: =T28+T29:T30+T32+T33+T35 -> 67413551673 | U37: =U26+U30+U32+U33+U35 -> 0 | W37: =SUM(W28:W35) -> 1019885086054
T38: 141819648036
A39: Las notas que se acompañan forman parte integrante de estos estados.

Sheet ER
B1: Indice
A3: ESTADO DE RESULTADOS
A4: AL 30 DE SETIEMBRE DE 2020 COMPARATIVO CON CIFRAS AL 30 DE SETIEMBRE DE 2019
A5: (En miles de guaraníes)
B7: Nota | C7: 2020-09-30 | D7: 2019-09-30
A8: Ventas Actividad Comercial | B8: 25 | C8: ='Nota 25'!B13 -> 444197202858 | D8: ='Nota 25'!C13 -> 428703135515
A9: Ventas Actividad Ganadera | B9: 25 | C9: ='Nota 25'!B19 -> 3108940205 | D9: ='Nota 25'!C19 -> 7397614694
A10: Costo de ventas | B10: 26 | C10: =-'Nota 26'!B18 -> -316630983086 | D10: =-'Nota 26'!C18 -> -304381374360
A11: Utilidad bruta | C11: =SUM(C8:C10) -> 130675159977 | D11: =SUM(D8:D10) -> 131719375849
A13: Gastos de ventas | B13: 27 | C13: =-'Nota 27'!B35 -> -50636005435 | D13: =-'Nota 27'!E35 -> -58515433234
A14: Gastos administrativos | B14: 27 | C14: =+-'Nota 27'!C35 -> -26204255261 | D14: =-'Nota 27'!F35 -> -24211613715
A15: Otros ingresos operativos | B15: 28 | C15: ='Nota 28'!B44 -> 14351590896 | D15: ='Nota 28'!C44 -> 12425872636
A16: Otros gastos operativos | B16: 28 | C16: ='Nota 28'!F18 -> -6844037835 | D16: ='Nota 28'!G18 -> -7900776838
A17: Resultado operativo | C17: =SUM(C13:C16) -> -69332707635 | D17: =SUM(D13:D16) -> -78201951151
A19: Ingresos financieros - neto | B19: 29 | C19: ='Nota 29'!B15 -> 24955270346 | D19: ='Nota 29'!C15 -> 22164680358
A20: Gastos financieros - neto | B20: 29 | C20: ='Nota 29'!F15 -> -12745833019 | D20: ='Nota 29'!G15 -> -17371904259
A21: Subtotal | C21: =SUM(C19:C20) -> 12209437327 | D21: =SUM(D19:D20) -> 4792776099
A23: Resultados No Operativos | B23: 28.1 | C23: =+'Nota 28'!B74 -> 452644312 | D23: =+'Nota 28'!C74 -> 165171512
A24: Ingresos de Inversiones Financieras | B24: 29.1 | C24: ='Nota 29'!B28 -> 1863181585 | D24: ='Nota 29'!C28 -> 1329102812
A25: Gastos de Inversiones Financieras | B25: 29.1 | C25: ='Nota 29'!F31 -> -189203339 | D25: ='Nota 29'!G31 -> -70992581
A27: Resultados ordinarios antes de impuesto a la renta | C27: =+C11+C17+C21+C23+C24+C25 -> 75678512227 | D27: =+D11+D17+D21+D23+D24+D25 -> 59733482540
A29: Resultado ordinario antes del impuesto a la renta
A30: Impuesto a la renta | B30: 32 | C30: -8264960554 | D30: =-'Nota 32'!C9 -> -7069592415
A32: Resultado neto de actividades ordinarias | C32: =+C27+C30 -> 67413551673 | D32: =+D27+D30 -> 52663890125
A33: Resultado extraordinario neto de impuesto a la renta | B33: 33 | C33: 0 | D33: 0
A34: Resultado sobre actividades discontinuadas neto de impuesto a la renta | B34: 34 | C34: ='Nota 34'!B11 -> 0 | D34: ='Nota 34'!C11 -> 0
D35: 0
A36: Utilidad/(Pérdida) neta del año | C36: =C32+C33+C34 -> 67413551673 | D36: =D32+D33+D34 -> 52663890125
A37: Utilidad neta por acción ordinaria | B37: 35 | C37: =C36/'Nota 35'!B9 -> 10618.01961 | D37: =D36/'Nota 35'!C9 -> 17563.07202
A40: Las notas que se acompañan forman parte integrante de estos estados.

Sheet EFE
A1: =Indice!C1 -> NICOLAS GONZALEZ ODDONE S.A.E.C.A
A5: ESTADO DE FLUJOS DE EFECTIVO
A6: Por los periodos comprendidos entre el 01 de enero al 30 de setiembre de 2020
A7: Comparativo con igual periodo del año anterior
B10: 2020-09-30 | C10: 2019-09-30
A11: En miles de guaraníes
A13: FLUJO DE EFECTIVO DE ACTIVIDADES OPERATIVAS
A14: Cobranzas efectuadas a clientes | B14: 418292915379 | C14: 467934450327
A15: Pagos efectuados a proveedores y empleados | B15: -257971154585 | C15: -209997223546
A16: Intereses pagados
A17: Efectivo generado por las operaciones | B17: -23198896932 | C17: -23487623489
A18: Intereses pagados | B18: 0 | C18: 0
A19: Otros ingresos y (egresos) - neto | B19: -9798323094 | C19: -47166786745
A20: Pagos de impuesto a la renta | B20: -6330933473 | C20: -9552819676
A21: Flujo neto de efectivo de actividades operativas | B21: =SUM(B14:B20) -> 120993607295 | C21: =SUM(C14:C20) -> 177729996871
A23: FLUJO DE EFECTIVO DE ACTIVIDADES DE INVERSIÓN
A24: Adquisicion de bienes de uso | B24: -24745926511 | C24: -12015959622
A25: Venta de bienes de uso | B25: 0 | C25: 0
A26: Intereses cobrados sobre inversiones | B26: 1343301480 | C26: 0
A27: Adquisición de bienes Curtiembre - fideicomitida
A28: Ventas de activos fijos | B28: 0 | C28: 0
A29: Aquisición de inversiones | B29: -126284069590 | C29: -93277689779
A30: Inversiones mobiliarias Permanentes | B30: 0 | C30: -11702000000
A32: Flujo neto de efectivo de actividades de inversión | B32: =+B24+B26+B29 -> -149686694621 | C32: =SUM(C24:C31) -> -116995649401
A35: FLUJO DE EFECTIVO DE ACTIVIDADES DE FINANCIACIÓN
A36: (Disminución) Incremento de préstamos | B36: 25540306849 | C36: -8032898845
A37: Aportes de capital recibidos | B37: - | C37: -
A38: Dividendos pagados | B38: -25093455998 | C38: -19422176144
A39: Intereses Pagados sobre préstamos | B39: -1265515657 | C39: -2235124739
A40: Flujo neto de efectivo de actividades de financiamiento | B40: =SUM(B36:B39) -> -818664806 | C40: =SUM(C36:C39) -> -29690199728
A42: (Disminución) incremento neto de efectivo | B42: =+B40+B32+B21 -> -29511752132 | C42: =+C21+C32+C40 -> 31044147742
A43: Efecto estimado de la diferencia de cambio sobre el saldo de efectivo | B43: 9741090595 | C43: 4570908189
A44: Efectivo al principio del año | B44: 97761526232 | C44: 48023427196
A45: Efectivo al final del periodo | B45: =SUM(B42:B44) -> 77990864695 | C45: =SUM(C42:C44) -> 83638483127

Sheet Nota1
B1: NOTAS A LOS ESTADOS FINANCIEROS POR EL PERIODO FINALIZADO EL 30 DE SETIEMBRE DE 2020
B2: Balance General: Correspondiente al periódo finalizado el 30 de setiembre de 2020, presentado en forma comparativa con el ejercicio finalizado el 31 de diciembre de 2019
B3: Estado de Resultados: Correspondiente al periódo finalizado el 30 de setiembre de 2020, presentado en forma comparativa con el periódo finalizado el 30 de septiembre de 2019.
B6: NOTA 1 – DESCRIPCIÓN DE LA NATURALEZA Y DEL NEGOCIO DE LA COMPAÑÍA
B8: Denominación: NICOLAS GONZALEZ ODDONE S.A.E.C.A
B10: La sociedad fue constituida por escritura de fecha 25 de marzo de 1964, autorizada por el Escribano Público Gervasio Recalde, habiéndose aprobado
B11: los mencionados estatutos y reconocida la personería jurídica de la sociedad por decretodel poder ejecutivo de la nacion Nº 4.180 de fecha 16 de abril
B12: de 1964, e inscriptos en el registro público de comercio por mandato del señor Juez de primera instancia en lo comercial del segundoturno, Dr. Arnaldo Rojas
B13: Rojas Sánchez, bajo el Nº 106 y en la página26 y sgtes., según providencia de fecha 03 de junio del mismo año.
B14: Los Estatutos originales sufrieron las siguientes modificaciones:
B15: 1º) Por Escritura N°º 77 de fecha 5 de abril de 1976, aprobadas las modificaciones y aumento de capital social a G. 100.000.000 (guaranies cien millones) por
B16: Decreto N° 23039 del 31 de mayo de 1976, e inscriptas en el registro publico de comercio, bajo el N°. 442 y en la pagina 202 en fecha 22 de junio del mismo año;
B17: 2°) Por Escritura del 7 de mayo de 1979, aprobadas las modificaciones y aumento de capital social a G. 300.000.000 (guaranies trescientos millones) por decreto
B18: N° 8.425 del 20 de julio de 1979, e inscriptas bajo el N° 999 y en la pagina 145 y sgtes., según providencia del mismo año;
B19: 3°) Por escritura N° 120 del 30 de abril de 1986, aprobadas las modificaciones y aumento de capital social a G 800.000.000 (guaranies ochocientos millones) por
B20: decreto N°. 18459 del 17 de noviembre de 1986, inscripta en el registro publico de comercio, bajo el N°. 1106 y en la pagina 32 vlto., en fecha 3 de diciembre del
B21: mismo año;
B22: 4°) por escritura N°. 219 del 6 de noviembre de 1989, aprobada la modificación por aumento de capital a G 3.000.000.000 (guaranies tres mil millones) y
B23: adecuacion al codigo civil, escritura en donde constan los estatutos actualizados de la sociedad, que fueron inscriptos en el registro publico de comercio, bajo el N°.
B24: 1423 y al folio 6856 y sgtes., seccion contratos, serie “b”, según providencia del 23 de noviembre de 1989;
B25: 5°) Por escritura N° 84 del 7 de mayo de 1991, con el aumento del capital a G 5.000.000.000 (guaranies cinco mil millones), inscripta en el registro publico de
B26: comercio, según providencia del 22 de mayo de 1991, anotado bajo el N°. 110, folio 520 y sgtes., serie “a”, seccion contratos.,
B27: 6°) Por escritura N°. 107 de fecha 28 de diciembre de 1995, pasada ante el escribano Raul A Casabianca, fueron modificados los estatutos sociales para
B28: adecuarlos a la ley del mercado de valores y en consecuencia la transformación de la firma en “SOCIEDAD EMISORA DE CAPITAL ABIERTO” y acogerse a los
B29: beneficios de la Ley N°. 548/95 y aumento de capital social a la suma de G 30.000.000.000 (treinta mil millones de guaranies); tomándose razon en la dirección
B30: general de los registros publicos, registro de personas jurídicas y asociaciones, según A I. N° 309 de fecha 1 de abril de 1996, anotado bajo el n° 197 folio 2558
B31: y sgtes., serie “a” de fecha dos de abril de 1996 y registro publico de comercio, anotado bajo el n° 186, serie “a” folio 2730 y sgtes., seccion contratos, en fecha
B32: 11 de abril de 1996 y escritura complementaria N° 109 de fecha 29 de diciembre de 1995, bajo el n° 198 folio 2580 y sgtes., serie “a” de fecha 2 de abril de 1996 y
B33: registro publico de comercio anotado bajo el N° 187 serie “a” folio 2751 y sgtes. seccion contratos, en fecha 11 de abril de 1996;
B34: 7°) Escritura N° 21 de fecha 8 de mayo del año 1996, fue protocolizado el Acta N° 49 de fecha 12 de abril del año 1996 de Asamblea General Extraordinaria,
B35: aumento de capital a la suma de G 50.000.000.000 (guaranies cincuenta mil millones) inscripto en la Dirección General de los Registros Publicos, Registro de
B36: Personas Jurídicas y Asociaciones, según A. I. N° 705 de fecha 4 de julio de 1996, anotado bajo el n° 365 serie “A” al folio 4756 y sgtes. en fecha 5 de julio de 1996 y
B37: registro publico de comercio anotado bajo el N° 716 serie “d” al folio 6104 y sgtes. seccion contratos en fecha 9 de julio de 1996;
B38: 8°) Escritura N° 23 de fecha 10 de marzo del año 1999, fue protocolizado el Acta N° 54 de fecha 22 de febrero del año 1999 de Asamblea General Extraordinaria de
B39: modificación de los arts.1° y 6° del contrato de constitución social, según providencia de fecha 19 de mayo de 1999, A. I. N° 797, anotado bajo el N° 491 serie “a”
B40: al folio 3966 y sgtes. seccion contratos y registro de personas jurídicas y asociaciones bajo el N° 102 serie “C” al folio 1357 y sgtes. en fecha 25 de mayo de 1999.
B41: 9°) Escritura N° 78 de fecha 31 de diciembre de 2001, fue protocolizado el Acta N°. 57 de Asamblea General Extraordinaria de fecha 7 de diciembre de 2001 de
B42: emisión de titulos de deudas, emisión de acciones, aumento de capital a la suma de G 70.000.000.000 (guaranies setenta mil millones) y prorroga de duración,
B43: inscripto en la dirección general de los registros publicos, registro publico de comercio, A. I. N° 347 providencia de fecha 19 de marzo de 2002, bajo el N° 149 serie
B44: “B” folios 1016 y sgtes. en fecha 22 de marzo de 2002 seccion contratos y registro de personas jurídicas y asociaciones bajo el n° 82 serie “G” folios 947 y sgtes
B45: en fecha 1 de abril de 2002;
B46: 10°) Escritura N° 5 de fecha 2 de mayo de 2003, fue protocolizado el Acta N°. 61 de fecha 31 de marzo de 2003 de Asamblea General Extraordinaria referente a la
B47: a la emisión de acciones y aumento de capital a la suma de G 100.000.000.000 (guaranies cien mil millones) modificándose los articulos 5º y 33º del contrato social,
B48: inscripta en la direccion general de los registros publicos, registro de personas jurídicas y asociaciones, según A. I. N° 1218 de fecha 17 de julio de 2003, bajo el N° 426,
B49: folio 5780, serie “F” y en el registro de contratos del registro publico de comercio bajo el N° 587, serie “b”, folios 7162 y sgtes. en fecha 30 de julio de 2003.
B50: 11º) Escritura Nº 17 de fecha 8 de mayo de 2006, fue protocolizado el Acta N°. 66 de fecha 7 de abril de 2006 de Asamblea General Extraordinaria, referante a la emisión
B51: de acciones y aumento de capital social a la suma de G 150.000.000.000.-(guaranies ciento cincuenta mil millones) modificándose los articulos 5º y 33º de los estatutos
B52: sociales, inscripta en la dirección general de los registros publicos, registro publico de comercio, según A. I. N° 1216 de fecha 10 de julio de 2006, bajo el nº 847 serie e,
B53: folios 8330 y sgtes. de la seccion contratos y en la seccion personas jurídicas y asociaciones bajo el nº 547, serie “b”, folios 5844 y sgtes.
B54: en fecha 25 de julio de 2006.
B55: 12º) Escritura Nº 8 de fecha 5 de mayo de 2008, fueron protocolizadas las actas, Nº 68 de fecha 14 de abril de 2008 de Asamblea Extraordinaria, referente al aumento del
B56: capital social a la suma de doscientos mil millones de guaranies ( G. 200.000.000.000 ), por la que se modifican los articulos 5º y 33º de los estatutos sociales y la Nº 69
B57: de Asamblea General Ordinaria, por la que se emiten acciones, inscripta en la direccion general de los registros publicos, registro publico de comercio, dictamen nº 1985,
B58: según providencia de fecha 3 de junio de 2008, bajo el nº 194, serie “c”, folio 1818 de la seccion contratos y en la seccion personas juridicas y asociaciones bajo el
B59: nº 589 y al folio 6814, el 6 de junio de 2008;
B60: 13º) Escritura Nº 7 de fecha 16 de abril de 2010, fue protocolizada el Acta Nº 72 de fecha 31 de marzo de 2010 de Asamblea General Extraordinaria, referente a la emision de
B61: de acciones y aumento del capital social a la suma de doscientos cincuenta mil millones de guaranies (G250.000.000.000), modificandose los articulos 5º y 33º del estatuto
B62: social, inscripta en la Direccion General de los Registros Publicos, Registro Publico de Comercio, dictamen Nº 1772 de fecha 3 de mayo de 2010, bajo el Nº 192, serie “g”,
B63: folio 2021, de la seccion contratos, el 10 de mayo de 2010 y en la seccion personas juridicas y asociaciones bajo el nº 99 y al folio 988, serie “e” , el 10 de mayo de 2010;
B64: 14º) Escritura Nº 12 de fecha 3 de junio de 2013, fue protocolizada el Acta Nº 79 de fecha 24 de mayo de 2013 de Asamblea General Extraordinaria, referente a la emision de
B65: acciones y aumento del capital social a la suma de doscientos setenta mil millones de guaranies (G 270.000.000.000.), modificandose los articulos 5º y 33º del estatuto
B66: social, inscripta en la direccion general de los registros publicos, registro publico de comercio, bajo el Nº 140, serie “h”, folio 1479 y sgtes., de la seccion contratos, el 18 de
B67: junio de 2013 y en la seccion personas juridicas y asociaciones bajo el nº 538 y al folio 6508, serie “d” , el 18 de junio de 2013;
B68: 15º) Escritura Nº 3 de fecha 12 de mayo de 2016, fue protocolizada el Acta Nº 84 de fecha 11 de abril de 2016 de Asamblea General Extraordinaria, referente al aumento
B69: del capital social a la suma de trescientos mil millones de guaranies (G 300.000.000.000.), modificandose los articulos 5º y 33º del estatuto social, inscripta en la direccion
B70: general de los registros publicos, seccion personas juridicas y asociaciones matricula juridica Nº 5293 y en la seccion comercio matricula comercial Nº 5585 de fecha 7
B71: de julio de 2016.
B72: 16°) Escritura Nº 13 de fecha 22 de octubre de 2018, fue protocolizada el Acta Nº 88 de fecha 05 de octubre de 2018 de Asamblea Extraordinaria, referente al aumento del
B73: capital social a la suma de ochocientos mil millones de guaranies (G 800.000.000.000.), modificandose los articulos 5º y 33º del estatuto social, inscripta en la direccion
B74: general de los registros publicos, seccion personas juridicas y asociaciones matricula juridica Nº 5293 de fecha 20 de marzo de 2019 y en la seccion comercio, matricula
B75: comercial Nº 5585 de fecha 16 julio de 2019;
B76: 17°) Escritura Nº 1, fecha 21 de enero 2020, fue protocolizada el Acta Nº 91 de fecha 11 de diciembre de 2019 de Asamblea Extraordinaria, Desmaterialización
B77: de acciones, modificandose los articulos 4°, 5º, 6°, 7° y 23º del estatuto social, inscripta en la direccion general de los registros publicos, seccion personas juridicas y
B78: asociaciones matricula juridica Nº 5293 de fecha 26 de febrero de 2020 y en la seccion comercio, matricula comercial Nº 5585 de fecha 26 de febrero de 2020.
B80: La Sociedad tiene por objeto:
B82: a) Importar y exportar toda clase de mercaderías, por cuenta propia o de terceros y/o asociada a terceros: comprar y vender bienes muebles o inmuebles y constituir derechos reales sobre ellos.
B84: b) Ejercer representaciones, comisiones, mandatos o consignaciones.
B86: c) Elaborar o industrializar todo género de productos o materias primas nacionales o extranjeras.
B88: d) Dar o tomar participación en cualquier sociedad, dentro o fuera del país que se realice con los objetos que se han indicado.
B90: e) Promover la radicación de capitales, empresas e industrias en la República del Paraguay.
B92: f) Explotar empresas de transportes y practicar, en fin, todo acto de comercio lícito.
B94: En el año 1996 la Comisión Nacional de Valores por medio de la Resolución N° 270/96 autoriza la inscripción definitiva de la Compañía como Sociedad Emisora de Capital Abierto.
B97: A la fecha el Capital Integrado asciende a Gs. 635.041.900.000
B98: Ejercicio Fiscal
B100: Conforme a los Estatutos Sociales y para adecuarse a los requerimientos de la Ley 125/91 y sus reglamentaciones el cierre del ejercicio económico y fiscal será el 31 de diciembre de cada año, por lo tanto los estados contables abarcarán el ejercicio correspondiente entre el 1 de enero al 31 de diciembre de cada año civil.
B102: COMPOSICION DEL CAPITAL
B104: A C C I O N E S
B105: Nº DE VOTOS QUE SUSCRIPTO INTEGRADO
B106: CANTIDAD TIPO OTORGA C/U. GS. GS.
B108: 3.792.183.- ORDIN/NOMINATIVAS 5 379.218.300.000.- 379.219.300.000.-
B109: 1.355.574.- ORDIN/NOMINATIVAS 4 135.557.400.000.- 135.557.400.000.-
B110: 1.201.220.- PREFE./NOMINATIVAS 1 RESTR 120.122.000.000.- 120.122.000.000.-
B111: 6.348.977.- 634.897.700.000.- 634.897.700.000.-
B112: ACCIONES EN TESORERIA
B113: 1.442.- PREFER./NOMINATIVAS 144.200.000.- 144.200.000.-
B114: 6.350.419.- 635.041.900.000.- 635.041.900.000.-
B115: ======== ============= =============

Sheet Nota 2
A1: =Indice!C1 -> NICOLAS GONZALEZ ODDONE S.A.E.C.A | D1: Indice
A3: NOTA 2 - RESUMEN DE LAS PRINCIPALES POLÍTICAS CONTABLES
A5: a. Bases de contabilización
A6: Los presentes estados financieros se han preparado siguiendo los criterios de las Normas de Información Financiera (NIF) emitidas por el Consejo de Contadores Públicos del Paraguay sobre la base de costos históricos, excepto para el caso de activos y pasivos en moneda extranjera y las propiedades, planta y equipo según se explica en los puntos c ) y k), y no reconocen en forma integral los efectos de la inflación sobre la situación patrimonial y financiera de la sociedad, sobre los resultados de sus operaciones y los flujos de efectivo, en atención a que la corrección monetaria no constituye una práctica contable obligatoria en el Paraguay.
A7: Según el índice general de precios del consumo (IPC) publicado por el Banco Central del Paraguay, la inflación acumulada del tercer trimestre fue de 0,5% en el año 2020 y 1,6% en el año 2019.
A8: Algunas cifras correspondientes al periodo del 2019 fueron reclasificadas en los presentes estados financieros con el fin de hacerlas comparables con las del periodo actual y facilitar la comparación.
A9: actual y facilitar la comparación.
A11: b. Uso de estimaciones contables
A12: La preparación de los presentes estados contables requiere que la Gerencia y el Directorio de la sociedad realicen estimaciones y evaluaciones que afectan el monto de los activos y pasivos registrados y contingentes revelados a fecha de cierre de cada balance, así como también los ingresos y egresos registrados en el ejercicio. El Directorio estima que los resultados reales futuros podrían diferir, en forma poco significativa, de las estimaciones y evaluaciones realizadas a la fecha de preparación de los presentes estados contables.
A14: c. Moneda extranjera
A15: Los activos y pasivos en moneda extranjera se valúan a los tipos de cambio vigentes a la fecha de cierre del balance, publicados por la administración tributaria.
A16: Las diferencias de cambio originadas por fluctuaciones en los tipos de cambio producidos entre las fechas de concertación de las operaciones y su liquidación o valuación al cierre del balance, son reconocidas en resultados.
C17: 2020-09-30 | G17: 2019-12-31
B18: Indicar moneda | C18: Simbología | D18: Miles de Gs. | F18: Indicar moneda | G18: Simbología | H18: Miles de Gs.
A19: Activos C. | B19: Euros | C19: € | D19: =50402697+86620612 -> 137023309 | F19: Euros | G19: € | H19: 120951819
A20: Activos C. | B20: Dólar Estadounidense | C20: $ | D20: =48508414871-50402697-86620612+170560051546+2988932900+599648016+73768030+170730750+31123710+682189396+424768181+5782864374 -> 229685468465 | F20: Dólar Estadounidense | G20: $ | H20: =218293350006 -> 218293350006
A21: Activos N.C. | B21: Dólar Estadounidense | C21: $ | D21: =220451535 -> 220451535 | F21: Dólar Estadounidense | G21: $ | H21: =283640229 -> 283640229
A22: Pasivos C. | B22: Dólar Estadounidense | C22: $ | D22: =151734402643+20903856980+9036945574+305338299+494456650 -> 182475000146 | F22: Dólar Estadounidense | G22: $ | H22: 126327026043
B25: El detalle de las cotizaciones de la moneda extranjera operada por la sociedad es el siguiente:
C27: 2020-09-30 | G27: 2019-12-31
B28: Indicar moneda | C28: Simbología | D28: Cotización Gs. | F28: Indicar moneda | G28: Simbología | H28: Cotización Gs.
A29: Activos | B29: Euros | C29: € | D29: 8176 | F29: Euros | G29: € | H29: 7217
A30: Activos | B30: Dólar Estadounidense | C30: $ | D30: 6979 | F30: Dólar Estadounidense | G30: $ | H30: 6442
A31: Pasivos | B31: Dólar Estadounidense | C31: $ | D31: 6990 | F31: Dólar Estadounidense | G31: $ | H31: 6464
A33: d. Efectivo y equivalentes de efectivo
A34: Los saldos de este rubro al 30 de setiembre de 2020 y 31 de diciembre de 2019, están compuestos por fondos de libre disponibilidad en poder de la Sociedad y en Bancos de plaza, en las modalidades de cuentas corrientes y cajas de ahorros en guaraníes y en moneda extranjera.
A36: e. Inversiones
A37: Las inversiones temporales se valúan de acuerdo a los siguientes criterios de valuación: * Colocaciones financieras en moneda extranjera: a su valor de cotización al cierre del año/período . Ver Nota 4 * Las inversiones no corrientes en sociedades donde no se ejerce el control, se valúan al valor patrimonial proporcional. Ver Nota 8
A38: Obs.: En caso de la existencia de saldos y transacciones con partes relacionadas, la información que corresponda a ser expuesta por la sociedad, se ajustará a lo requerido por la Norma de Información Financiera N° 7 Revelaciones de partes relacionadas.
A40: f. Previsión para cuentas de dudoso cobro/incobrables
A41: La Sociedad constituye previsiones sobre las cuentas de dudoso cobro o de difícil recuperabilidad, teniendo en cuenta el análisis de la Gerencia sobre la antigüedad y cobrabilidad de cada uno de los créditos. Las cuentas a cobrar en Gestión de Cobro Judicial y las que se encuentran en Convocatoria de Acreedores y/o Quiebra, han sido provisionadas en su totalidad.
A42: Criterio para Previsiones
A43: 1. Clientes que registran atrasos y estan por ser demandados.
A44: 2. Clientes que tienen cuentas con otros proveedores y no estan pudiendo pagar.
A45: 3. Clientes con cheque devueltos.
A46: 4. Clientes que presentan atrasos normales.
A47: 5. Clientes sobregirados de acuerdo al límite de créditos establecido por el comité correspondiente.
A48: 6. Clientes que refinancian sus cuentas.
A50: g. Inventarios
A51: Las existencias están valuadas al costo de adquisición más todos los gastos necesarios hasta la puesta en depósitos de la Compañía. La salida de las existencias es registrada utilizando el sistema de precio promedio ponderado. La Sociedad efectúa previsiones por obsolescencia de acuerdo al análisis de la Gerencia sobre la desvalorización y/o obsolescencia de los mismos. A partir del ejercicio 2008, la Compañía utiliza el Criterio del Valor Neto de Realización para valuar su hacienda vacuna. Ver Nota 7
A52: A partir del ejercicio 2008, la compañía utiliza el criterio del valor neto de realización para valuar su hacienda vacuna. Ver Nota 7
A54: h. Activos disponibles para la venta
A55: Los activos disponibles para la venta representan bienes que fueron desafectados de la actividad productiva y se mantienen con el único objetivo de ser vendidos. Los mismos se valúan, sin amortizar, al menor entre el valor de mercado de los mismos y su costo (valor libro) al momento de su designación como disponibles para la venta.
A57: i. Previsiones para desvalorización y deterioro de inventarios
A58: Las previsiones para desvalorización y deterioro de inventarios han sido estimadas tomando como base la valorización del stock deteriorado existente al cierre del ejercicio.
A60: j. Propiedades, planta y equipo
A61: Las propiedades, planta y equipo se exponen a su costo histórico ajustado por el % del valor residual emitido por la Autoridad Tributaria, menos la correspondiente depreciación acumulada. El incremento neto por la re-expresión se acredita a la respectiva reserva patrimonial, cuyo saldo puede ser utilizado únicamente para aumentar el capital.
A62: El costo de las mejoras que extienden la vida útil de los bienes o aumentan su capacidad productiva es imputado a las cuentas respectivas del activo. Los gastos de mantenimiento son cargados a resultados.
A63: La depreciación es calculada por el método de línea recta, conforme a la vida útil definida por la administración tributaria.
A65: k. Intangibles
A66: Los intangibles se exponen a su costo incurrido menos las correspondientes amortizaciones acumuladas al cierre del año, y son reconocidas en los resultados.
A68: l. Reconocimiento de ingresos y egresos
A69: Los estados contables se preparan sobre la base de lo devengado. Bajo tal base los efectos de las transacciones y otros eventos son reconocidos cuando ocurren (y no cuando el efectivo o su equivalente es recibido o pagado) y son registrados en los libros contables y presentados en los estados financieros en los períodos a que se refieren.
A73: m. Impuesto a la renta
A74: El Impuesto a la Rental, es calculado en base al resultado contable, ajustado por las partidas que la ley tributaria incluye o excluye para la actividad grabable, a esta cifra final se aplica la tasa del 10% en concepto de Impuesto a la renta empresarial 6380 de modernización del sistema tributario nacional.
A76: n. Restricciones a la distribución de utilidades
A77: No existen restricciones a la distribución de utilidades mas que lo sigueinte:
A78: • La legislación paraguaya establece una transferencia del 5% de las utilidades del ejercicio para la constitución de una reserva legal hasta completar el 20% del
A79: capital integrado.
A80: • De acuerdo a la ley Nº 6380/19 que deroga los libros I, III y IV de la Ley N° 125/91, la cual dispone aplicar dentro del primer año de vigencia una tasa única y
A81: extraordinaria de retención equivalente al 5% de Impuesto a los dividendos (IDU) sobre los importes netos de las utilidades a ser distribuidas. Además, de una retención
A82: equivalente al 5% de Impuesto a los dividendos (IDU) sobre los importes netos de las utilidades a ser distribuidas. Además, de una retención sujeta a una tasa equivalente al 10%
A83: para las utilidades que sean remesadas o acreditadas a beneficiarios radicados en el exterior.
A86: o. Acciones de tesoreria
A87: Al 30 de setiembre de 2020, el saldo de Acciones en Tesorería es de 1.442 acciones. El valor nominal de dichas acciones es de G. 100.000.- cada una. El tratamiento contable que corresponde es el de las acciones propias en cartera, por lo que se las registró por su valor nominal en una cuenta denominada Acciones en Tesorería, y por la diferencia de valor entre el valor pagado y el valor nominal se debitó a otra cuenta denominada Prima de Recompra de Acciones, actuando ambas cuentas como Reguladoras del Patrimonio Neto.

Sheet Nota 3
A1: =[1]Indice!C1 -> NICOLAS GONZALEZ ODDONE S.A.E.C.A | D1: BG
A3: NOTA 3 - EFECTIVO Y EQUIVALENTE DE EFECTIVO
A4: En miles de guaranies
A6: La composición de la cuenta es la siguiente:
A8: Cuentas | C8: 2020-09-30 | D8: 2019-12-31
A10: Recaudaciones a Depositar | C10: 2717405259 | D10: 5361218035
A11: Fondo Fijo | C11: =13500000+10000000+24500000+12000000+25000000+10000000+3000000 -> 98000000 | D11: 96000000
A12: Fondo de Sencillo | C12: =1000000+2200000+2000000 -> 5200000 | D12: 3000000
C13: =SUM(C10:C12) -> 2820605259 | D13: =SUM(D10:D12) -> 5460218035
A15: Bancos Cuentas Corrientes - Moneda Local (Gs) | C15: 5341809731 | D15: 1321712423
A16: Bancos Locales Cajas de Ahorros - Moneda Local (Gs) | C16: 21320034834 | D16: 60832378882
A17: Bancos Locales CTA.CTE Y C.AH - Moneda Extranjera (USD) | C17: =48508414871-50402697-86620612 -> 48371391562 | D17: =570893904+29455371169 -> 30026265073
A18: Bancos Locales - Moneda Extranjera (EU) | C18: =50402697+86620612 -> 137023309 | D18: 120951819
C19: =SUM(C15:C18) -> 75170259436 | D19: =SUM(D15:D18) -> 92301308197
A20: Total Disponibilidades | C20: =+C13+C19 -> 77990864695 | D20: =+D13+D19 -> 97761526232

Sheet Nota 4
A1: =[1]Indice!C1 -> NICOLAS GONZALEZ ODDONE S.A.E.C.A | C1: BG
A3: NOTA 4 - INVERSIONES TEMPORIAS - INVERSIONES FINANCIERAS
A4: En miles de guaranies
A6: La composición de la cuenta es la siguiente:
A8: Cuentas | B8: 2020-09-30 | C8: 2019-12-31
A9: Casa de Bolsa Puente ME | B9: 14099002460 | C9: 13354381956
A10: CDA Bancop | B10: 33499200000 | C10: 30921600000
A11: Casa de Bolsa CADIEM | B11: 13886000000 | C11: 0
A12: Puente - Fondos Mutuos ME | B12: 27072599086 | C12: 0
A13: Regional casa de Bolsa S.A | B13: 6979000000 | C13: 0
A14: CDA Banco Basa S.A | B14: 13958000000 | C14: 0
A15: Pershing LLC- Exterior | B15: 41874000000 | C15: 0
A16: Casa de Bolsa Cadiem Fondos Mutuos ME | B16: 19192250000 | C16: 0
A17: Total | B17: =SUM(B9:B16) -> 170560051546 | C17: =SUM($C$9:C16) -> 44275981956

Sheet Nota 5
A1: =[1]Indice!C1 -> NICOLAS GONZALEZ ODDONE S.A.E.C.A | C1: BG
A3: NOTA 5 - CUENTAS POR COBRAR COMERCIALES
A4: En miles de guaranies
A6: Las cuentas a cobrar comerciales a corto plazo se integran como sigue:
C8: 2020-09-30 | D8: 2019-12-31 | F8: Composición de la cartera de créditos por ventas | G8: 2020-09-30
A9: Deudores por ventas locales | B9: Moneda Local Guaraníes | C9: 167439027428 | D9: 156506238929 | F9: Situación | G9: Monto | H9: Previsiones
A10: Deudores por ventas locales | B10: Moneda Extranjera Dólares | C10: 2855968224 | D10: 2543712471 | G10: ( en G.) | H10: (en G.) | I10: % Prev s/ Cartera
A11: Deudores - Entidad relacionada | B11: Moneda Local Guaraníes | C11: 36963243902 | D11: 37855832285 | F11: A. Total Cartera no vencida | G11: 301908753262 | H11: =11759452750 -> 11759452750 | I11: =H11/G11% -> 3.895035378
A12: Deudores - Entidad relacionada | B12: Moneda Extranjera Dólares | C12: 5653758 | D12: 3221644 | F12: Normal | G12: =4803634782+220451535 -> 5024086317 | H12: 4662065826 | I12: =H12/G12% -> 92.79430193
A13: Cheques adelantados recibidos de clientes | B13: Moneda Local Guaraníes | C13: 92291949322 | D13: 76930324224 | F13: En Gestión de Cobro | G13: 11721276168 | H13: 11721276168 | I13: =H13/G13% -> 100
A14: Cheques rechazados | B14: Moneda Local Guaraníes | C14: 1057343695 | D14: 920157236 | F14: En Gestión de Cobro Judicial | G14: 23008234983 | H14: 23008234983 | I14: =H14/G14% -> 100
A15: Cupones Tj.credito | B15: Moneda Local Guaraníes | C15: 35071421 | D15: 27895347 | F15: B. Total Cartera Vencida | G15: =SUM(G12:G14) -> 39753597468
A16: Deudores-Otros ingresos exterior | B16: Moneda Extranjera Dólares | C16: 127310918 | D16: 587203181
A17: Otros | B17: Moneda Local Guaraníes | C17: 1168256015 | D17: 0
A18: Menos Previsiones | C18: -11759452750 | D18: -12343862623 | F18: Total de la cartera de créditos al 31/03/2020 | G18: =+G11+G15 -> 341662350730
A19: Total | C19: =SUM(C9:C18) -> 290184371933 | D19: =SUM(D9:D18) -> 2.630307227e+11 | F19: (-) Total Previsiones al 31/03/2020 | G19: =+H11+H12+H13+H14 -> 51151029727
A21: Las cuentas a cobrar comerciales a largo plazo se integran como sigue: | F21: Total Neto de la cartera de créditos al 30/09/2020 | G21: =+G18-G19 -> 290511321003
C23: 2020-09-30 | D23: 2019-12-31
A24: Deudores por ventas locales | B24: Moneda Local Guaraníes | C24: 4803634782 | D24: 7169145314 | F24: Observaciones
A25: Deudores en gestión judicial | B25: Moneda Local Guaraníes | C25: 34729511151 | D25: 33575209533 | F25: Criterio de Clasificacion utilizados
A26: Deudores-Otros ingresos exterior | B26: Moneda Extranjera Dólares | C26: 220451535 | D26: 283640229 | F26: Normal | G26: de 30 a 60 dias de atraso
A27: Menos Previsiones | C27: -39391576977 | D27: -38681218392 | F27: En Gestion de cobro | G27: de 61 a 150 dias de atraso
A28: Total | C28: =SUM(C24:C27) -> 362020491 | D28: =SUM(D24:D27) -> 2346776684 | F28: En Gestión de Cobro Judicial | G28: Mas de 151 días de atraso
F30: CRITERIO PARA PREVISONES
F31: 1- Clientes que registran atrasos y estan por ser demandados.
F32: 2- Clientes que tienen cuentas con otros proveedores y no estan pudiendo pagar.
F33: 3- Clientes con Cheques devueltos.
F34: 4- Clientes que presentan atrasos normales.
F35: 5- Clientes sobregirados de acuerdo al limite de creditos establecido por el
F36: comité correspondiente.
F37: 6- Clientes que refinancian sus cuentas.
F38: 7- Estimación de la alta gerencia sobre decaimiento de las cobranzas

Sheet Nota 6
A1: =[1]Indice!C1 -> NICOLAS GONZALEZ ODDONE S.A.E.C.A | C1: BG
A3: NOTA 6 - OTROS CRÉDITOS
A4: En miles de guaranies
A6: La composición de la cuenta es la siguiente:
A8: Cuentas | B8: 30/09/2020 | C8: 2019-12-31 | E8: Cuentas | F8: 30/09/2020 | G8: 2019-12-31
A9: Corrientes - Actividad Comercial | E9: No corrientes Actividad Comercial
A10: Anticipo de sueldos y comisiones | B10: 66741178 | C10: 5195476 | E10: Otros Créditos | F10: 0 | G10: 2019685489
A11: Anticipo de remuneraciones Direct. y Gerentes | B11: 1877923 | C11: 0 | E11: Total Otros Créditos | F11: 0 | G11: =SUM(G10) -> 2019685489
A12: Anticipo para gastos de despachos | B12: 5682064 | C12: 0
A13: Anticipo para gastos varios | B13: 91148593 | C13: 37478200
A14: Anticipo para compras activo fijo | B14: 143342508 | C14: 84129005
A15: Anticipos para préstamos a directores | B15: 0 | C15: 0
A16: Anticipo para instalación de mercaderías | B16: 290503403 | C16: 253723580
A17: Préstamos al personal | B17: 258106279 | C17: 286484184
A18: Préstamos a terceros | B18: 1155383625 | C18: 902983
A19: Deudores por alquileres a cobrar | B19: 142017000 | C19: 58538500
A20: Garantías de alquiler | B20: 31652381 | C20: 32452381
A21: Intereses s/ Inversiones PF a cobrar | B21: 599648016 | C21: 174021998
A22: Seguros a cobrar | B22: 259584 | C22: 23162936
A23: Préstamos al personal ME | B23: 0 | C23: 16841900
A24: Deudores por alquileres a cobrar ME | B24: 73768030 | C24: 0
A25: Garantías de alquiler ME | B25: 170730750 | C25: 157345850
A26: Gastos realizados por cta. De terceros | B26: 128111718 | C26: 128111718
A27: Préstamos a directores | B27: 0 | C27: 0
A28: Intereses a vencer | B28: 682189396 | C28: 460978820
A29: Previsiones para incobrables | B29: 0 | C29: -902983
A30: Impuesto al valor agregado | B30: 4443859 | C30: 59226943
A31: Anticipo Impuesto a la Renta | B31: 0 | C31: 1864910140
A32: Retenciones Impuesto a la Renta | B32: 49521766 | C32: 0
A33: Retenciones de IVA | B33: 0 | C33: 0
A34: Alquileres Pagados por Adelantado | B34: 9520660 | C34: 5818184
A35: Alquileres Pagados por Adelantado ME | B35: 424768181 | C35: 548508986
A36: Otros gastos pagados por adelantado | B36: 897524245 | C36: 4556449534
A37: Anticipo para Inversiones Financieras ME | B37: 0 | C37: 136916464
A38: Derechos aduaneros a aplicar | B38: 1878111 | C38: 0
A39: Intereses pagados a recuperar ME. INV.FINANC | B39: 31123710 | C39: 0
A40: Total | B40: =SUM($B$10:B39) -> 5259942980 | C40: =SUM($C$10:C39) -> 8890294799
A43: Corrientes - Actividad Ganadera
A44: Anticipo al personal Act.Ganadera | B44: 28227277 | C44: 24474886
A45: Anticipos a Contratistas Act. Ganadera | B45: 251613284 | C45: 205949921
A46: Anticipos p/ viáticos a la estancia Act. Ganadera | B46: 3127768 | C46: 4043426
A47: Anticipos para gastos varios Act. Ganadera | B47: 3326458 | C47: 26895474
A48: Anticipo Iragro | B48: 0 | C48: 118638707
A49: Combustibles a utilizar | B49: 136864000 | C49: 0
A50: Total | B50: =SUM(B44:B49) -> 423158787 | C50: =SUM(C44:C49) -> 380002414
A51: Total general Otros créditos Act. Comercial y Ganadera | B51: =+B40+B50 -> 5683101767 | C51: =+C40+C50 -> 9270297213
A55: NOTA 6 - OTROS ACTIVOS
A56: En miles de guaranies
A58: La composición de la cuenta es la siguiente:
A59: Cuentas | B59: 30/09/2020 | C59: 2019-12-31
A60: Corrientes
A61: Impuesto Inmobiliario | B61: 80554436 | C61: 0
A62: Tasas Especiales | B62: 12273806 | C62: 0
A63: Patente Municipal | B63: 131812827 | C63: 0
A64: Impuestos y Tasas s/ Inversiones Inmob. | B64: 49224124 | C64: 0
A65: Impuestos y Tasas Prop. Rural | B65: 61947431 | C65: 0
A66: Total | B66: =SUM(B61:B65) -> 335812624 | C66: =SUM(C61:C65) -> 0
A69: Cuentas | B69: 30/09/2020 | C69: 2019-12-31
A70: No Corrientes
A71: Derecho Aduanero a Regularizar | B71: 0 | C71: 1311136198
A72: Total | B72: =SUM(B71:B71) -> 0 | C72: =SUM(C71:C71) -> 1311136198

Sheet Nota 7
A1: =[1]Indice!C1 -> NICOLAS GONZALEZ ODDONE S.A.E.C.A | C1: BG
A3: NOTA 7 – INVENTARIOS
A4: En miles de guaranies
A6: Los bienes de cambio están compuestos de la siguiente manera:
A8: Cuentas | B8: 30/09/2020 | C8: 2019-12-31
A9: Corrientes - Actividad Comercial
A10: Mercaderías Gravadas | B10: 97220903620 | C10: 97714621050
A11: Mercaderías S/Dto. 6406/05 | B11: 33301326988 | C11: 73955756842
A12: Mercaderías con Obsolescencia | B12: =14979781695+9908904+3932385299 -> 18922075898 | C12: =14120737168+9908904+6959684141 -> 21090330213
A13: Fondo de Obsolescencia | B13: =-5257505632-9908904-1296874571 -> -6564289107 | C13: =-9595214150-9908904-4384479077 -> -13989602131
A14: Repuestos Gravados | B14: 5556406097 | C14: 1251241029
A15: Repuestos S/Dto. 6406/05 | B15: 0 | C15: 0
A16: Repuestos con Obsolescencia | B16: =1952033521+34575662 -> 1986609183 | C16: =5517654836+42269678 -> 5559924514
A17: Fondo de Obsolescencia | B17: =-1119081452-34190193 -> -1153271645 | C17: =-1946324323-41838330 -> -1988162653
A18: Importaciones en curso | B18: 153080966747 | C18: 131479746126
A19: Anticipo a Proveedores del Exterior | B19: 5782864374 | C19: 7517309142
A20: Total | B20: =SUM(B10:B19) -> 308133592155 | C20: =SUM(C10:C19) -> 322591164132
A22: Corrientes - Actividad Ganadera
A24: Hacienda Vacuna | B24: 11594997745 | C24: 22025480989
A25: Total | B25: =SUM(B24) -> 11594997745 | C25: =SUM(C24) -> 22025480989
A26: Total general Inventarios Corrientes | B26: =+B20+B25 -> 319728589900 | C26: =+C20+C25 -> 344616645121
A30: No corrientes - Actividad Comercial
A32: Repuesto Grav. C/Obsolescencia | B32: =2548714287+57770488 -> 2606484775 | C32: =1607344951+42022693 -> 1649367644
A33: Fondo de Obsolescencia. Repuesto Grav. | B33: =-980322264-57609854 -> -1037932118 | C33: =-368487813-37535000 -> -406022813
A34: Total | B34: =SUM(B32:B33) -> 1568552657 | C34: =SUM(C32:C33) -> 1243344831
A35: Total general Inventarios no corrientes | B35: =SUM(B34) -> 1568552657 | C35: =SUM(C34) -> 1243344831

Sheet Nota 8
A1: =[3]Indice!C1 -> NICOLAS GONZALEZ ODDONE S.A.E.C.A | C1: BG
A4: Nota 8 - INVERSIONES EN ASOCIADAS
A5: En miles de guaraníes
A7: Las inversiones en sociedades donde no se ejerce control se describen a continuación:
B9: 2020-09-30 | C9: 2019-12-31
A10: Total Inversión | B10: =+J21 -> 32213537431 | C10: 32213537431
A12: a) Datos sobre la sociedad: | H12: a) Datos sobre la inversión:
D13: =IFERROR(IF([3]Indice!B6="","2XX2",YEAR([3]Indice!B6)),"2XX2") -> 2020 | E13: 2020-09-30 | F13: 2019-12-31
A14: Nombre de Sociedad | B14: RUC | C14: Cantidad de acciones | D14: Total Patrimonio neto | E14: Total del resultado | H14: Cantidad de acciones | I14: Participación sobre los votos (%) | J14: Total Inversión (miles de Gs) | K14: Participación sobre el Patrimonio Neto (%) | L14: Total valuación patrimonial proporcional | M14: Resultado sobre inversiones
A15: Todo Franquicia S.A | B15: 80056073-6 | C15: 15000 | D15: 6081385663 | E15: -1314356910 | F15: -4242824559 | H15: 14984 | I15: 1 voto por accion | J15: 3914711856 | K15: =+J15/D15 -> 0.6437203744 | L15: =K15*D15 -> 3914711856 | M15: =K15*E15 -> -846078322.2
A16: Confort para el Hogar - CPH S.A | B16: 80083931-5 | C16: 27499 | D16: 26290558198 | E16: 7338855223 | F16: 9725422881 | H16: 27490 | I16: 1 voto por accion | J16: 28298825575 | K16: =+J16/D16 -> 1.0763874 | L16: =K16*D16 -> 2.829882558e+10 | M16: =K16*E16 -> 7899451290
K17: =J17*C17 -> 0 | L17: 0
K18: 0 | L18: 0
K19: 0 | L19: 0
K20: 0 | L20: 0
A21: Total | E21: =SUM(E15:E20) -> 6024498313 | F21: =SUM(F15:F20) -> 5482598322 | J21: =SUM(J15:J20) -> 32213537431 | L21: =SUM(L15:L20) -> 3.221353743e+10

Sheet Nota 9
A1: =[1]Indice!C1 -> NICOLAS GONZALEZ ODDONE S.A.E.C.A | L1: BG
A5: Obs.:
A6: Incluir aclaraciones en los siguientes casos:
A7: 1. Cuando los bienes de uso tienen alguna restricción sobre su utilización, como por ejemplo cuando están garantizando obligaciones. En su caso también hacer referencia a la nota correspondiente.
A8: 2. Cuando exista alguna previsión por desvalorización (“deterioro”), detallando la evolución de la misma en el transcurso del año.
A9: 3. Si se están capitalizando intereses al costo de bienes de uso. En su caso deberá aclararse la tasa utilizada para la capitalización.
A10: Ver adicionalmente Norma de Información Financiera N° 11 Propiedades, planta y equipo
A12: NICOLAS GONZALEZ ODDONE SAECA | C12: BG
A14: NOTA 9 - PROPIEDADES, PLANTA Y EQUIPO - NETO
A15: En miles de guaraníes
B16: V A L O R E S D E O R I G E N | G16: D E P R E C I A C I O N E S
B17: AL Inicio del periodo | C17: Adquisiciones+ Transf. Del periodo | D17: Bajas del periodo | E17: Revalúo del año | F17: Valor al cierre del periodo | G17: Depreciación acumulada al inicio del año | H17: Altas y Transf. Del periodo | I17: Bajas de del periodo | J17: Revalúo depreciación acumulada del año | K17: Depreciación acumulada al final del periodo | L17: Valor neto resultante | M17: Valor neto resultante
L18: 2020-09-30 | M18: 2020-12-31
A19: Actividad Comercial
A20: Muebles, Útiles y enseres | B20: 9262569137 | C20: =590909+527273+14072727+16031818+1054545+1140000+1418182+909091+2090909+1000000+1718182+974380+655993+2800579+892641+2503606+1000979+623111+1681818+4000000+1281818+2700000+2624000+3936000+1236364+2454545+6676334+4378434+1439636+2189217+1447969+6499382+527273+916426+17963+28125+227273+42170+34545+300000+83308+46211+237573+4500000+14336364+1162392997+4585382401+1512727+386235705+881439+3818182+1909091+481435+4363636+4175141+1975890+1054545+1000000+1118914+1118914+1118914 -> 6272387604 | D20: 597510689 | F20: =+B20+C20-D20 -> 14937446052 | G20: 5228162937 | H20: 755600629 | I20: =D20 -> 597510689 | K20: =+G20+H20-I20 -> 5386252877 | L20: =+F20-K20 -> 9551193175 | M20: 4034406200
A21: Máquinas de Oficinas | B21: 4022068777 | C21: =3590091+3590091+11245488+3590091+48847730+109644642+2873870+4637920+3657528+3657528+5568456+11136978+3624990+1653120+6081488+5794916+2468400+3555486+3714291+3714291+4994777+5830687+7573624+1590287+6236357+1980551+3338625+3360525+6340229+22763889+3389163+6896081+5405692+6769094+6896081+8366143+3499650+6810370+6129092+100577435+52513180+144484376 -> 658393303 | D21: 373919501 | F21: =+B21+C21-D21 -> 4306542579 | G21: 2368118220 | H21: 616046477 | I21: =D21 -> 373919501 | K21: =+G21+H21-I21 -> 2610245196 | L21: =+F21-K21 -> 1696297383 | M21: 1653950557
A22: Maquinarias, Herramientas y Equipos | B22: 3372245247 | C22: =1426694+557793+675818+1926136+913636+1323636+11477994+3961850+2710783 -> 24974340 | D22: 6512136 | F22: 3390707451 | G22: 1647214031 | H22: 358150215 | I22: =D22 -> 6512136 | K22: 1998852110 | L22: 1391855341 | M22: 1725031216
A23: Edificios y Construcciones | B23: 102415170888 | C23: =23967273+8690909+962646538 -> 995304720 | D23: 0 | F23: 103410475608 | G23: 20139366810 | H23: 1608451511 | K23: 21747818321 | L23: 81662657287 | M23: 82275804078
A24: Transportes Terrestres | B24: 5956822857 | C24: 117979533 | D24: 2303370849 | F24: 3771431541 | G24: 3991876581 | H24: 393407418 | I24: =D24 -> 2303370849 | K24: 2081913150 | L24: 1689518391 | M24: 1964946276
A25: Instalaciones | B25: 15585632831 | C25: =7272727+10079300+7636364+1200000+1767150+1636250+5254545+5181818+818182+8074174+2618000+21068944+2945250+46707476+11090909+23836340+2909091+4084842+2500000+61913636+68235763 -> 296830761 | D25: 1134080955 | F25: 14748382637 | G25: 11071003633 | H25: 1229496159 | I25: =D25 -> 1134080955 | K25: 11166418837 | L25: =+F25-K25 -> 3581963800 | M25: 4514629198
A26: Construcciones en curso | B26: 920648457 | C26: =1088990+40909091 -> 41998081 | D26: 962646538 | F26: 0 | G26: 0 | H26: 0 | I26: 0 | K26: 0 | L26: =+F26-K26 -> 0 | M26: 920648457
A27: Construcciones en previo Ajeno | B27: 1826371556 | C27: 0 | D27: 0 | F27: 1826371556 | G27: 1578038255 | H27: 91879369 | K27: 1669917624 | L27: =+F27-K27 -> 156453932 | M27: 248333301
A28: Aviones | B28: 3746716084 | C28: 0 | D28: 0 | F28: 3746716084 | G28: 1772788173 | H28: 417929490 | I28: 0 | K28: 2190717663 | L28: =+F28-K28 -> 1555998421 | M28: 1973927911
A29: Sub Totales | B29: =SUM(B20:B28) -> 147108245834 | C29: =SUM(C20:C28) -> 8407868342 | D29: =SUM(D20:D28) -> 5378040668 | F29: =SUM(F20:F28) -> 150138073508 | G29: =SUM(G20:G28) -> 47796568640 | H29: =SUM(H20:H28) -> 5470961268 | I29: =SUM(I20:I28) -> 4415394130 | K29: =SUM(K20:K28) -> 48852135778 | L29: =SUM($L$20:L28) -> 101285937730 | M29: =SUM($M$20:M28) -> 99311677194
A31: Actividad Ganadera
A32: Construcciones | B32: =935290137+841881023+974781158+262460243+42091183 -> 3056503744 | C32: =135318182 -> 135318182 | D32: =735198135+200092002 -> 935290137 | F32: =+B32+C32-D32 -> 2256531789 | G32: 440365160 | H32: 32242097 | I32: 0 | K32: 472607257 | L32: =+F32-K32 -> 1783924532 | M32: 2616138584
A33: Instalaciones | B33: 769397698 | C33: =25454545+3636364+20062000+2000000+64000000+2122727 -> 117275636 | D33: =2122727+3636364 -> 5759091 | F33: =+B33+C33-D33 -> 880914243 | G33: 625347762 | H33: 21863402 | I33: 0 | K33: 647211164 | L33: =+F33-K33 -> 233703079 | M33: 144049936
A34: Mejoras | B34: =5192087558+2947869159+1213582871+9632162012+59942704+321600302+1655384976+38483202+49053841+718259673+647100743 -> 22475527041 | C34: =94234918+53709800+98299000+27314000+108909233+26860364+21686364+53692727+46666000+24954545+8000000+22200000+128218182+21695455+59145455+27763636+11545455+10909091+735198135+200092002+21181709+15636364+17868091+235807000+68162000+152128000+14663045+72245000+73073250+9159091+10299600+29356364+11545455+20781818+25400000+1271000 -> 2559672149 | D34: 11545455 | F34: =+B34+C34-D34 -> 25023653735 | G34: 10052983396 | H34: 977238950 | I34: 0 | K34: =G34+H34-I34 -> 11030222346 | L34: =+F34-K34 -> 13993431389 | M34: 12422543645
A35: Muebles y Equipos | B35: =171806720+11422637+5550985 -> 188780342 | C35: =785336+849135+2879271+2189217+1894676+9127295+12181818+1542769+662961+1413423+604545+3636364 -> 37766810 | D35: 0 | F35: =+B35+C35-D35 -> 226547152 | G35: 153393252 | H35: 22038838 | I35: 0 | K35: =G35+H35-I35 -> 175432090 | L35: =+F35-K35 -> 51115062 | M35: 35387090
A36: Maquinarias e Implementos | B36: =2318557984+167018593+79247788+89970847+72357801 -> 2727153013 | C36: 0 | D36: 0 | F36: 2727153013 | G36: 1585704238 | H36: 200758827 | I36: 0 | K36: 1786463065 | L36: 940689948 | M36: 1141448775
A37: Equipos y Herramientas | B37: =13983376+50712782+960338087 -> 1025034245 | C37: =1881818+77272727+2900000+416392+2964000+2431818+6900000+400000+786364+9300000+1336364+2292727+1786364+3100000+1217045 -> 114985619 | D37: 0 | F37: 1140019864 | G37: 695780516 | H37: 97732328 | I37: 0 | K37: 793512844 | L37: 346507020 | M37: 329253729
A38: Transportes Terrestres | B38: =441513744+75267674+171910540+2356112 -> 691048070 | C38: =2295143+915343+8336364+8345485 -> 19892335 | D38: 0 | F38: 710940405 | G38: 232204289 | H38: 68307162 | I38: 0 | K38: 300511451 | L38: 410428954 | M38: 458843811
A39: Equipos de Comunicación | B39: 84987043 | C39: =10063636+2590909+3274091+2122727 -> 18051363 | D39: 0 | F39: 103038406 | G39: 73312469 | H39: 3749143 | I39: 0 | K39: 77061612 | L39: 25976794 | M39: 11674574
A40: Sub Totales | B40: =SUM(B32:B39) -> 31018431196 | C40: =SUM(C32:C39) -> 3002962094 | D40: =SUM(D32:D39) -> 952594683 | F40: =SUM(F32:F39) -> 33068798607 | G40: =SUM(G32:G39) -> 13859091082 | H40: =SUM(H32:H39) -> 1423930747 | I40: =SUM(I32:I39) -> 0 | K40: =SUM(K32:K39) -> 15283021829 | L40: =SUM($L$32:L39) -> 17785776778 | M40: =SUM($M$32:M39) -> 17159340144
A42: NO SUJETOS A DEPRECIACION
A44: Actividad Comercial
A45: Inmuebles-Terrenos | B45: 23122305987 | C45: 0 | D45: 0 | F45: 23122305987 | G45: 0 | H45: 0 | I45: 0 | K45: 0 | L45: 23122305987 | M45: 23122305987
B46: =SUM(B45) -> 23122305987 | C46: =SUM(C45) -> 0 | D46: =SUM(D45) -> 0 | F46: =SUM(F45) -> 23122305987 | G46: =SUM(G45) -> 0 | H46: =SUM(H45) -> 0 | I46: =SUM(I45) -> 0 | K46: =SUM(K45) -> 0 | L46: =SUM(L45) -> 23122305987 | M46: =SUM(M45) -> 23122305987
A47: Actividad Ganadera
A48: Inmuebles Rurales | B48: 155232969990 | C48: 0 | D48: 0 | F48: 155232969990 | G48: 0 | H48: 0 | I48: 0 | K48: 0 | L48: 155232969990 | M48: 155232969990
B49: =SUM(B48) -> 155232969990 | C49: 0 | D49: 0 | E49: 0 | F49: 155232969990 | G49: 0 | H49: 0 | I49: 0 | J49: 0 | K49: 0 | L49: =SUM(L48) -> 155232969990 | M49: =SUM(M48) -> 155232969990
A51: Hacienda Permanente | B51: =17919565480+71000000+9105790000+1018500000 -> 28114855480 | C51: =12511988883+820285714+23333333+83945455+274057130+4727273+105000000+5250000+9523810+93332267+508492353+16666667+26666667+15000+2250000+24000+3636364+57142857+3809428 -> 14550147201 | D51: =920272214+1147930800+868111570+32637500+770519858 -> 3739471942 | F51: 38925530739 | G51: 928679029 | H51: 0 | I51: 0 | K51: =G51+H51-I51 -> 928679029 | L51: 37996851710 | M51: 27186176421
A52: Pasturas | B52: 16457592232 | C52: =63636364+145527273+45454545+121683636+272177415+52727273+129924500+21668455+391185455 -> 1243984916 | D52: 0 | F52: 17701577148 | G52: 9093280632 | H52: 450155443 | I52: 0 | K52: =G52+H52-I52 -> 9543436075 | L52: 8158141073 | M52: 7364311600
B53: =SUM(B51:B52) -> 44572447712 | C53: =SUM(C51:C52) -> 15794132117 | D53: =SUM(D51:D52) -> 3739471942 | F53: =SUM(F51:F52) -> 56627107887 | G53: =SUM(G51:G52) -> 10021959661 | H53: =SUM(H51:H52) -> 450155443 | I53: =SUM(I51:I52) -> 0 | K53: =SUM(K51:K52) -> 10472115104 | L53: =SUM(L51:L52) -> 46154992783 | M53: =SUM(M51:M52) -> 34550488021
A54: Sub Totales | B54: =+B46+B49+B53 -> 222927723689 | C54: =+C46+C49+C53 -> 15794132117 | D54: =+D46+D49+D53 -> 3739471942 | F54: =+F46+F49+F53 -> 234982383864 | G54: =+G46+G49+G53 -> 10021959661 | H54: =+H46+H49+H53 -> 450155443 | I54: =I46+I49+I53 -> 0 | K54: =K46+K49+K53 -> 10472115104 | L54: =L46+L49+L53 -> 224510268760 | M54: =+M46+M49+M53 -> 212905763998
A55: Total General | B55: =+B29+B40+B54 -> 401054400719 | C55: =+C29+C40+C54 -> 27204962553 | D55: =+D29+D40+D54 -> 10070107293 | F55: =+F29+F40+F54 -> 418189255979 | G55: =+G29+G40+G54 -> 71677619383 | H55: =+H29+H40+H54 -> 7345047458 | I55: =+I29+I40+I54 -> 4415394130 | K55: =+K29+K40+K54 -> 74607272711 | L55: =+L29+L40+L54 -> 343581983268 | M55: =+M29+M40+M54 -> 329376781336

Sheet Nota 10
A1: =[1]Indice!C1 -> NICOLAS GONZALEZ ODDONE S.A.E.C.A | C1: BG
A3: NOTA 10 – ACTIVOS DISPONIBLES PARA LA VENTA
A4: En miles de guaraníes
A5: NO APLICA
B6: 2020-06-30 | C6: 2019-12-31
A7: Propiedad, planta y equipo
A8: (Detallar bienes de uso)
A9: Total | B9: 0 | C9: 0
A11: Activos intangibles
A12: (Detallar activos intangibles)
A13: Total | B13: 0 | C13: 0
A15: Inversiones
A16: (Detallar Inversiones
A17: Total | B17: 0 | C17: 0
A20: NOTA 10 - INVERSIONES INMOBILIARIAS
A21: En miles de guaraníes
A22: Inmuebles y edificios que están destinados a la obtención de Renta.
A24: Cuentas | B24: 30/09/2020 | C24: 2019-12-31
A25: Inversiones – Edificios | B25: 20069079097 | C25: 19566351824
A26: Inversiones – Terrenos | B26: 26719462956 | C26: 26572471989
A27: Obras en Curso de Realizacion | B27: 4522898732 | C27: 2036153354
A28: Depreciación Acumulada – Edificios | B28: -8566662680 | C28: -8273042403
A29: Total | B29: =SUM(B25:B28) -> 42744778105 | C29: =SUM(C25:C28) -> 39901934764

Sheet cred (hidden)
A1: =Indice!C1 -> NICOLAS GONZALEZ ODDONE S.A.E.C.A | C1: BG
A4: NOTA 10 - CREDITOS POR VENTAS
A5: En miles de guaranies
A10: Cuentas | B10: 2020-03-31 | C10: 2019-12-31
A11: Casa de Bolsa Puente ME | B11: 13354381956 | C11: 10266827892
A12: CDA Bancop | B12: 30921600000 | C12: 31459200000
A13: Puente - Fondos Mutuos ME | B13: 0 | C13: 3560595316
A14: Total | B14: =SUM($B$11:B13) -> 44275981956 | C14: =SUM($C$11:C13) -> 45286623208

Sheet Nota 11
A1: =[1]Indice!C1 -> NICOLAS GONZALEZ ODDONE S.A.E.C.A | C1: BG
A3: NOTA 11 – ACTIVOS INTANGIBLES
A4: En miles de guaranies
A6: Las cuentas Activos intengibles se componen como sigue:
A8: Cuentas | B8: 2020-09-30 | C8: 2019-12-31
A9: Actividad Comercial
A10: Marcas | B10: =54104002-54104002 -> 0 | C10: 0
A11: Gastos de Organización | B11: =43068550-43068550 -> 0 | C11: 0
A12: Gastos de Organización | B12: 43068550 | C12: 43068550
A13: Amortización acum. Gastos de Organiz. | B13: -43068550 | C13: -43068550
A14: Licencias de Informática | B14: 3958659725 | C14: 3308490249
A15: Amortización acum. Licenc. de Informática | B15: -2378618849 | C15: -1824948895
A16: Programas de Informática | B16: 3679416087 | C16: 2762930637
A17: Amortización acum. Programas de Inform. | B17: -2408330963 | C17: -1782791356
A18: Licencias para Teléfonos | B18: 345380986 | C18: 345380986
A19: Amortización acum. Lic. para teléfonos | B19: -242532776 | C19: -178159805
A20: Programas de Informática en Línea S.A | B20: 342316500 | C20: 342316500
A21: Amortización acum. Program. de inf. en línea | B21: -342316500 | C21: -334152417
A22: Derechos Aduaneros a regularizar | B22: 0 | C22: 1311136198
A23: Total | B23: =SUM(B10:B22) -> 2953974210 | C23: =SUM(C10:C22) -> 3950202097
A25: Actividad Ganadera
A26: Marca NGO | B26: =599465-599465 -> 0 | C26: 0
A27: Marca NGO | B27: 599465 | C27: 599465
A28: Amortización acum. Marcas y señales | B28: -599465 | C28: -599465
A29: Licencias de Informática Act. Ganadera | B29: 14269091 | C29: 14269091
A30: Amortización acum. Lic. De Informática Act. Ganad. | B30: -13716818 | C30: -13302614
A31: Total | B31: =SUM(B26:B30) -> 552273 | C31: =SUM(C26:C30) -> 966477
A32: Total general | B32: =+B23+B31 -> 2954526483 | C32: =+C23+C31 -> 3951168574

Sheet Nota 12
A1: =Indice!C1 -> NICOLAS GONZALEZ ODDONE S.A.E.C.A | E1: BG
A3: NOTA 12 – GOODWILL
A4: En miles de guaranies
A5: NO APLICA
A7: Goodwill | B7: 2020-09-30 | C7: 2019-12-31
A11: Total general | B11: =SUM(B8:B10) -> 0 | C11: =SUM(C8:C10) -> 0

Sheet Nota 13
A1: =[1]Indice!C1 -> NICOLAS GONZALEZ ODDONE S.A.E.C.A | C1: BG
A3: NOTA 13 – CUENTAS POR PAGAR COMERCIALES
A4: En miles de guaranies
A6: Las cuentas por pagar comerciales se componen como sigue:
A8: Cuentas | B8: 2020-09-30 | C8: 2019-12-31
A9: Actividad Comercial
A10: Proveedores del Exterior
A11: Brasil Internacional Exportadora LTDA. | B11: 0 | C11: 6262710
A12: Whirlpool S.A | B12: 4675401300 | C12: 5227507902
A13: Rational International AG | B13: 492081668 | C13: 742647603
A14: Metalúrgica Trapp S.A | B14: 548410585 | C14: 0
A15: Whirlpool Chile LTDA. | B15: 7407023398 | C15: 8941522566
A16: Groupe Seb Chile Com. LTD | B16: 3556701921 | C16: 0
A17: Whirlpool Corporation | B17: 20071642 | C17: 190263055
A18: Vitamix Corporation | B18: 134691220 | C18: 0
A19: Groupe Seb Chile Com. LTD | B19: 0 | C19: 6441716910
A20: Sony Uruguay Branch de Sony Latin | B20: 0 | C20: 1202350605
A21: Metalúrgica Siemsen LTDA. | B21: 0 | C21: 53558182
A22: Sony Uruguay Branch de Sony Latin | B22: 1624021650 | C22: 0
A23: Seb do Brasil | B23: 936138966 | C23: 14004126656
A24: José Alladio e Hijos S.A | B24: 382008112 | C24: 242801154
A25: Grupe Seb Colombia | B25: 374693218 | C25: 813715663
A26: Midea Electric Trading (Singapore) | B26: 0 | C26: 43693602
A27: Rayovac Argentina S.R.L | B27: 648042900 | C27: 22624000
A28: Cem S.A | B28: 104570400 | C28: 320465729
A29: Ind. e com. de Chopeiras Bibeirao Preto | B29: 0 | C29: 41136960
A30: Total | B30: =SUM(B11:B29) -> 20903856980 | C30: =SUM(C11:C29) -> 38294393297
A32: Proveedores Locales
A33: Bancard S.A | B33: 17093206 | C33: 16519711
A34: Total | B34: =SUM(B33) -> 17093206 | C34: =SUM(C33) -> 16519711
A36: Acreedores Varios
A37: Cheques emitidos al Cobro | B37: 0 | C37: 383640000
A38: Total | B38: =SUM(B37) -> 0 | C38: =SUM(C37) -> 383640000
A39: Total general | B39: =+B30+B34+B38 -> 20920950186 | C39: =+C30+C34+C38 -> 38694553008

Sheet Nota 14
A1: =[1]Indice!C1 -> NICOLAS GONZALEZ ODDONE S.A.E.C.A | C1: BG | L1: BG
A3: NOTA 14 – DEUDAS BANCARIAS - PRESTAMOS A CORTO PLAZO
A4: En miles de guaranies
A6: Las cuentas Deudas Bancarias se componen como sigue:
A8: Préstamos de Entidades Locales
A9: Por Cartas de Crédito
D10: 2020-09-30 | J10: 2019-12-31
A11: Cuentas | B11: Vencimiento | C11: Símbolo de Moneda | D11: Moneda | F11: Tipo de Garantía | H11: Vencimiento | I11: Símbolo de Moneda | J11: Moneda | K11: Importe (miles de Gs) | L11: Tipo de Garantía
A12: BBVA Banco | B12: S/tipo de Negociación | C12: USD | D12: =IFERROR(VLOOKUP(C12,'[1]Base de Monedas'!A:B,2,0),"") -> Dólar estadounidense | E12: 62951128951 | F12: A sola firma | H12: S/tipo de Negociación | I12: USD | J12: =IFERROR(VLOOKUP(I12,'[1]Base de Monedas'!A:B,2,0),"") -> Dólar estadounidense | K12: 14479624765 | L12: A sola firma
A13: Banco Regional S.A.E.C.A | B13: S/tipo de Negociación | C13: USD | D13: =IFERROR(VLOOKUP(C13,'[1]Base de Monedas'!A:B,2,0),"") -> Dólar estadounidense | E13: 88783273692 | F13: A sola Firma | H13: S/tipo de Negociación | I13: USD | J13: =IFERROR(VLOOKUP(I13,'[1]Base de Monedas'!A:B,2,0),"") -> Dólar estadounidense | K13: 51111239849 | L13: A sola firma
A14: Banco GNB | B14: S/tipo de Negociación | C14: USD | D14: =IFERROR(VLOOKUP(C14,'[1]Base de Monedas'!A:B,2,0),"") -> Dólar estadounidense | E14: 0 | F14: A sola firma | H14: S/tipo de Negociación | I14: USD | J14: =IFERROR(VLOOKUP(I14,'[1]Base de Monedas'!A:B,2,0),"") -> Dólar estadounidense | K14: 13851957436 | L14: A sola firma
A15: Total | D15: =IFERROR(VLOOKUP(C15,'[1]Base de Monedas'!A:B,2,0),"") ->  | E15: =SUM(E12:E14) -> 151734402643 | J15: =IFERROR(VLOOKUP(I15,'[1]Base de Monedas'!A:B,2,0),"") ->  | K15: =SUM(K12:K14) -> 79442822050
D16: =IFERROR(VLOOKUP(C16,'[1]Base de Monedas'!A:B,2,0),"") ->  | J16: =IFERROR(VLOOKUP(I16,'[1]Base de Monedas'!A:B,2,0),"") -> 
A17: Por Préstamos | D17: =IFERROR(VLOOKUP(C17,'[1]Base de Monedas'!A:B,2,0),"") ->  | J17: =IFERROR(VLOOKUP(I17,'[1]Base de Monedas'!A:B,2,0),"") -> 
A18: BBVA Banco - Préstamos | B18: 2020-11-29 | C18: PYG | D18: Guarani | E18: 53000000000 | F18: A sola firma | H18: 2020-04-28 | I18: PYG | J18: =IFERROR(VLOOKUP(I18,'[1]Base de Monedas'!G:H,2,0),"") ->  | K18: 42000000000 | L18: A sola firma
A19: Banco Basa - Préstamos | B19: 2020-11-24 | C19: PYG | D19: Guarani | E19: 13300000000 | F19: A sola Firma | K19: 0
A20: Total | E20: =SUM(E18:E19) -> 66300000000 | J20: =IFERROR(VLOOKUP(I20,'[1]Base de Monedas'!G:H,2,0),"") ->  | K20: =SUM(K18) -> 42000000000
A22: Intereses préstamos entidades financieras a pagar
A23: Intereses s/ préstamos bancarios a pagar | C23: PYG | D23: Guarani | E23: 1844136986 | H23: - | I23: PYG | J23: Guarani | K23: 787068493 | L23: -
A24: (-) Intereses s/ préstamos bancarios a Vencer | C24: PYG | D24: Guarani | E24: -590712328 | H24: - | I24: PYG | J24: Guarani | K24: -773950684 | L24: -
A25: Total | E25: =SUM(E23:E24) -> 1253424658 | K25: =SUM(K23:K24) -> 13117809
A26: Total general deudas Bancarias | D26: =IFERROR(VLOOKUP(C26,'[1]Base de Monedas'!A:B,2,0),"") ->  | E26: =+E15+E20+E25 -> 219287827301 | K26: =+K15+K20+K25 -> 121455939859

Sheet Nota 15
A1: =Indice!C1 -> NICOLAS GONZALEZ ODDONE S.A.E.C.A | C1: BG
A3: NOTA 15 – PORCION CORRIENTE DE LA DEUDA A LARGO PLAZO
A4: En miles de guaranies
A5: NO APLICA
A6: Porción corriente de la deuda a largo plazo | B6: 2020-09-30 | C6: 2019-12-31
A7: Cuentas por pagar comerciales
A8: Préstamos bancarios
A9: Bonos bursátiles
A10: Intereses bancarios a pagar
A11: Intereses bursatiles a pagar
A13: Total general | B13: =SUM($B$7:B12) -> 0 | C13: =SUM($C$7:C12) -> 0

Sheet Nota 16
A1: =Indice!C1 -> NICOLAS GONZALEZ ODDONE S.A.E.C.A | C1: BG
A3: NOTA 16 – REMUNERACIONES Y CARGAS SOCIALES A PAGAR
A4: En miles de guaranies
A6: Las cuentas cargas sociales se componen como sigue:
A8: Cuentas | B8: 2020-09-30 | C8: 2019-12-31
A9: Actividad Comercial
A10: Seguro social I.P.S | B10: 518270006 | C10: 522184621
A11: Sueldos y comisiones a Pagar | B11: 163249196 | C11: 65183217
A12: Aguinaldos a Pagar | B12: 916529183 | C12: 0
A13: Gratificaciones a Pagar | B13: 0 | C13: 1443753317
A14: Remuneracion Directorio y Gtes a pagar | B14: 5324000 | C14: 0
A15: Total | B15: =SUM($B$10:B14) -> 1603372385 | C15: =SUM($C$10:C14) -> 2031121155
A17: Actividad Ganadera
A18: Seguro Social I.P.S a pagar Act. Ganadera | B18: 34007266 | C18: 23467928
A19: Total | B19: =SUM(B18) -> 34007266 | C19: =SUM(C18) -> 23467928
A20: Total general | B20: =+B15+B19 -> 1637379651 | C20: =+C15+C19 -> 2054589083

Sheet Nota 17
A1: =Indice!C1 -> NICOLAS GONZALEZ ODDONE S.A.E.C.A | C1: BG
A3: NOTA 17 – IMPUESTOS A PAGAR
A4: En miles de guaranies
A6: Las cuentas Impuestos a pagar se componen como sigue:
A8: cuentas | B8: 2020-09-30 | C8: 2019-12-31
A9: Impuesto al Valor Agregado | B9: 1489834082 | C9: 1258509840
A10: Retenciones de Impuestos | B10: 2977042 | C10: 19448130
A11: Impuesto a la renta a pagar | B11: 2646424801 | C11: 0
A12: Retencion de Impuesto Prov.Locales | B12: 177287889 | C12: 230034736
A13: IDU a pagar | B13: 0 | C13: 0
A14: IVA aduana a pagar | B14: 542719949 | C14: 0
A15: Total Impuestos a pagar | B15: =SUM(B9:B14) -> 4859243763 | C15: =SUM(C9:C14) -> 1507992706

Sheet Nota 18
A1: =Indice!C1 -> NICOLAS GONZALEZ ODDONE S.A.E.C.A | C1: BG
A3: NOTA 18 - PROVISIONES
A4: En miles de guaranies
A6: Provisiones Moneda Local
A7: Cuentas | B7: 2020-09-30 | C7: 2019-12-31
A8: Actividad Comercial
A9: Publicidad a Pagar | B9: 3568886993 | C9: 5932990175
A10: Cuentas a pagar | B10: 3282095326 | C10: 3440249561
A11: Fletes a pagar | B11: 64995866 | C11: 507982316
A12: Seguros a Pagar | B12: 725545136 | C12: 142031260
A13: Despachantes - Ctas. a Pagar | B13: 106692090 | C13: 284111600
A14: Remuneración síndico a pagar | B14: 0 | C14: 14889234
A15: Honorarios Profesionales a Pagar | B15: 160395900 | C15: 110925760
A16: Cuentas a pagar - Tarjetas | B16: 17596401 | C16: 34171369
A17: Cuentas a Pagar - Vales | B17: 94060000 | C17: 228978950
A18: Cuentas a Pagar Instaladores | B18: 529666570 | C18: 894887184
A19: Seguros a Vencer | B19: -586652526 | C19: -194533541
A20: Cuentas a Vencer | B20: -16703276 | C20: -26851091
A21: Viáticos a Reembolsar | B21: 1485000 | C21: 890133
A22: Total | B22: =SUM(B9:B21) -> 7948063480 | C22: =SUM(C9:C21) -> 11370722910
A24: Provisiones Moneda Extranjera
A25: Publicidad a Pagar M.E | B25: 57576630 | C25: 215509760
A26: Cuentas a pagar M.E | B26: 3197590808 | C26: 1358242834
A27: Fletes a pagar M.E | B27: 4677479846 | C27: 4652368886
A28: Seguros a pagar M.E | B28: 432647797 | C28: 121250355
A29: Honorarios Profesionales M.E a pagar | B29: 8982150 | C29: 2488640
A30: Intereses M.E a devengar | B30: 683264634 | C30: 462553103
A31: Seguros M.E a vencer | B31: -19671517 | C31: -757970
A32: Cuentas ME vencer | B32: -924774 | C32: 0
A33: Total | B33: =SUM($B$25:B32) -> 9036945574 | C33: =SUM($C$25:C32) -> 6811655608
A34: Total General Provisiones Act. Comercial | B34: =+B22+B33 -> 16985009054 | C34: =+C22+C33 -> 18182378518
A38: Actividad Ganadera
A39: Provisiones Moneda Local
A40: Seguros a pagar Act. Ganadera | B40: 18280000 | C40: 2154000
A41: Cuentas a pagar Act. Ganadera | B41: 1132321016 | C41: 119573677
A42: Seguros a Vencer Act. Ganadera | B42: -15875581 | C42: -1493852
A43: Total | B43: =SUM($B$40:B42) -> 1134725435 | C43: =SUM($C$40:C42) -> 120233825
A45: Provisiones Moneda Extranjera
A46: Cuentas a pagar M.E Act. Ganadera | B46: 305338299 | C46: 153834150
A47: Total | B47: =SUM($B$46:B46) -> 305338299 | C47: =SUM($C$46:C46) -> 153834150
A48: Total General Provisiones Act. Ganadera | B48: =+B43+B47 -> 1440063734 | C48: =+C43+C47 -> 274067975

Sheet Nota 19
A1: =Indice!C1 -> NICOLAS GONZALEZ ODDONE S.A.E.C.A | C1: BG
A3: NOTA 19 – OTROS PASIVOS CORRIENTES
A5: Otros Pasivos corrientes Moneda Local
A6: cuentas | B6: 2020-09-30 | C6: 2019-12-31
A7: Anticipos de Clientes | B7: 22194579 | C7: 4510913453
A8: Garantías de Alquiler | B8: 110599000 | C8: 104149000
A9: Señas | B9: 4336678 | C9: 4336678
A10: Anticipos Varios | B10: 492838803 | C10: 520575006
A11: Comisiones S/Vtas. A pagar | B11: 80150395 | C11: 69465892
A12: Dividendos a Pagar | B12: 0 | C12: 0
A13: Total | B13: =SUM(B7:B12) -> 710119455 | C13: =SUM(C7:C12) -> 5209440029
A15: Otros Pasivos Corrientes Moneda Extranjera
A16: Anticipos de clientes M.E | B16: 451468150 | C16: 1584567331
A17: Garantías de Alquiler M.E | B17: 42988500 | C17: 39753600
A18: Total | B18: =SUM(B16:B17) -> 494456650 | C18: =SUM(C16:C17) -> 1624320931
A21: Ingresos No Devengados
A22: Ingresos no devengados | B22: 1688055052 | C22: 3440129837
A23: Total | B23: =SUM(B22) -> 1688055052 | C23: =SUM(C22) -> 3440129837
A24: Total general Otros Pasivos Corrientes | B24: =+B13+B18+B23 -> 2892631157 | C24: =+C13+C18+C23 -> 10273890797

Sheet Nota 20
A1: =Indice!C1 -> NICOLAS GONZALEZ ODDONE S.A.E.C.A | C1: BG
A3: NOTA 20 – CAPITAL INTEGRADO
A5: Cuentas | B5: 2020-09-30 | C5: 2019-12-31
A6: Capital | B6: =+B7+B8+B9+B10 -> 643227002000 | C6: =+C7+C8+C9+C10 -> 643227002000
A7: Capital Suscripto | B7: 800000000000 | C7: 800000000000
A8: Capital a Integrar | B8: -164958100000 | C8: -164958100000
A9: Acciones en tesorería | B9: -144200000 | C9: -144200000
A10: Premio de Emisión | B10: 8329302000 | C10: 8329302000
A11: Cantidad de Acciones | B11: 6348977 | C11: 6348977
A12: Valor Nominal de Acciones | B12: 100000 | C12: 100000
A13: Total | B13: =SUM(B7:B10) -> 643227002000 | C13: =SUM(C7:C10) -> 643227002000

Sheet Nota 21
A1: =Indice!C1 -> NICOLAS GONZALEZ ODDONE S.A.E.C.A | C1: BG
A3: NOTA 21 – RESERVAS
A4: En miles de guaranies
B5: 2020-09-30 | C5: 2019-12-31
A7: a.1 Reserva de revalúo Ley 125/91 | B7: =57008661721+33978554091+472930672+107394557 -> 91567541041 | C7: =57008661721+33978554091+472930672+107394557 -> 91567541041
A8: a.2 Reserva de revalúo Técnico | B8: 87405000939 | C8: 87405000939
A9: Total | B9: =SUM(B7:B8) -> 178972541980 | C9: =SUM(C7:C8) -> 178972541980
A13: b.1 Reserva legal | B13: 49691949474 | C13: 45971644656
A14: b.2 Reserva legal CPH | B14: 506745718 | C14: 506745718
A15: Total | B15: =SUM(B13:B14) -> 50198695192 | C15: =SUM(C13:C14) -> 46478390374
A18: c Reservas estatutarias
A22: d Reservas facultativas | B22: =+SUM($B$23:B28) -> 0 | C22: =+SUM($C$23:C28) -> 0
A23: d.1. (nuevas cuentas a incluir)
A24: d.2. (nuevas cuentas a incluir)
A30: c. Reserva para Capitalización | B30: 80120680209 | C30: 34528344662
A31: Total | B31: =SUM(B30) -> 80120680209 | C31: =SUM(C30) -> 34528344662
A36: Correspondiente a las Acciones en Tesoreria
A37: * Prima de compra de Acciones | B37: -47385000 | C37: -47385000
A38: Total general Reservas | B38: =B9+B15+B31+B37 -> 309244532381 | C38: =+C9+C15+C31+C37 -> 259931892016

Sheet Nota 22
A1: =Indice!C1 -> NICOLAS GONZALEZ ODDONE S.A.E.C.A | C1: BG
A3: NOTA 21 – DIFERENCIA TRANSITORIA POR CONVERSION
A4: En miles de guaranies
A5: NO APLICA
B6: 2020-09-30 | C6: 2019-12-31
A7: Diferencia transitoria por conversión
B10: - | C10: -

Sheet Nota 23
A1: =Indice!C1 -> NICOLAS GONZALEZ ODDONE S.A.E.C.A | C1: BG
A3: NOTA 23 – RESULTADOS ACUMULADOS
A4: En miles de guaranies
A6: Cuenta | B6: 2020-09-30 | C6: 2019-12-31
A7: Resultado de ejercicios anteriores | B7: 0 | C7: 0
A8: Resultado del ejercicio | B8: 67413551673 | C8: 74406096363
A9: Totales | B9: =SUM($B$7:B8) -> 67413551673 | C9: =SUM($C$7:C8) -> 74406096363

Sheet Nota 24
A1: =Indice!C1 -> NICOLAS GONZALEZ ODDONE S.A.E.C.A | C1: BG
A3: NOTA 24 – INTERES MINORITARIO
A4: En miles de guaranies
A5: NO APLICA
B6: 2020-09-30 | C6: 2019-12-31
A7: Interes Minoritario
B10: - | C10: -

Sheet Nota 25
A1: =Indice!C1 -> NICOLAS GONZALEZ ODDONE S.A.E.C.A | C1: ER
A3: NOTA 25 – VENTAS
A4: En miles de guaranies
A6: Las Ventas netas al 30 de setiembre de 2020 y 2019 son las siguientes:
A8: Cuentas | B8: 2020-09-30 | C8: 2019-09-30
A9: Ventas Actividad Comercial
A10: ventas al contado de Mercaderías | B10: =16403071108+422288860048 -> 438691931156 | C10: =16597312597+406149375098 -> 422746687695
A11: Venta de Repuestos | B11: 4010042494 | C11: 4635195970
A12: Ventas Servicio Técnico | B12: 1495229208 | C12: 1321251850
A13: Total Ventas Actividad Comercial | B13: =SUM(B10:B12) -> 444197202858 | C13: =SUM(C10:C12) -> 428703135515
A16: Ventas Actividad Ganadera
A17: Ventas Activ. Ganadera | B17: 2238200982 | C17: 7397614694
A18: Ventas Activ. Ganadera capitalización | B18: 870739223 | C18: 0
A19: Total Ventas Actividad Ganadera | B19: =SUM(B17:B18) -> 3108940205 | C19: =SUM(C17) -> 7397614694

Sheet Nota 26
A1: =Indice!C1 -> NICOLAS GONZALEZ ODDONE S.A.E.C.A | C1: ER
A3: NOTA 26 - COSTO DE VENTAS
A4: Miles de guaraníes
A6: Costo de ventas | B6: 2020-09-30 | C6: 2019-09-30
A7: Comercial
A8: Existencia inicial del inventario | B8: 323834508963 | C8: 337291591520
A9: + Compra de bienes y servicios | B9: 299389678730 | C9: 236376570532
A10: + Costo de producción
A11: - Existencia final de inventario | B11: -309702144812 | C11: -273395038490
A12: Ganadera
A13: Existencia inicial del inventario | B13: 22025480989 | C13: 21936412500
A14: + Compra de bienes y servicios | C14: 0
A15: + Costo de producción
A16: - Existencia final de inventario | B16: -11594997745 | C16: -23212962500
A17: Tranferencia por reclasificacion de ganado/VM | B17: -7321543039 | C17: 5384800798
A18: Total costo de ventas | B18: =SUM(B8:B17) -> 316630983086 | C18: =SUM(C8:C17) -> 304381374360

Sheet Nota 27
A1: =Indice!C1 -> NICOLAS GONZALEZ ODDONE S.A.E.C.A | C1: ER
A3: NOTA 27 - GASTOS
A4: Miles de guaraníes
A6: El rubro está compuesto de la siguiente forma:
A8: Cuentas | C8: 2020-09-30 | F8: 2019-09-30
B9: Gastos de Ventas | C9: Gastos Administrativos | D9: Total | E9: Gastos de Ventas | F9: Gastos Administrativos | G9: Total
A10: Movilidad y viáticos | B10: =409681186+22329731+19601906+14988235+491128+27531998+5661000 -> 500285184 | C10: =8020641+2658273 -> 10678914 | D10: =+C10+B10 -> 510964098 | E10: =508304142+470182+356375+40751488+4947075+36828169 -> 591657431 | F10: =14865678 -> 14865678 | G10: =+F10+E10 -> 606523109
A11: Combustibles y lubricantes | B11: =51758962+32590284+60947710+103006347+1203837 -> 249507140 | C11: =64470365+20382800+572244+7756781+286418 -> 93468608 | D11: =+B11+C11 -> 342975748 | E11: =31625568+126890647+1454382 -> 159970597 | F11: =66873149+3020089+3553250+585000 -> 74031488 | G11: =+F11+E11 -> 234002085
A12: Gastos de alquiler | B12: =162945021+956235243+28433796+13310000+117000000 -> 1277924060 | C12: =181245000+13752069 -> 194997069 | D12: =+C12+B12 -> 1472921129 | E12: =238509840+3025326696+156277331+22196000 -> 3442309867 | F12: =167475000+11636368 -> 179111368 | G12: =+F12+E12 -> 3621421235
A13: Computación y redes | D13: 0 | G13: =+F13+E13 -> 0
A14: Gastos por servicios | D14: 0 | G14: 0
A15: Honorarios profesionales y asesoramiento | B15: =37535395+662641365+99804815+12736364 -> 812717939 | C15: =5806566048+33065456+2562500+62178483 -> 5904372487 | D15: 6717090426 | E15: =115156824+5381284+91315000+56367382 -> 268220490 | F15: =4028152470+1462536+67943712+14837500+127971325 -> 4240367543 | G15: 4508588033
A16: Impuestos y tasas | B16: =3419300 -> 3419300 | C16: =1125768076-440745766 -> 685022310 | D16: 688441610 | E16: 5746936 | F16: =1343007461-675717813 -> 667289648 | G16: 673036584
A17: Gastos de reparación y mantenimiento | B17: =31874385+265117347+119420163+39945566+24940819 -> 481298280 | C17: =270101310+637966210+185109140 -> 1093176660 | D17: 1574474940 | E17: =51471905+343182+523922661+27719502+39607021+90370910 -> 733435181 | F17: =503899340 -> 503899340 | G17: 1237334521
A18: Seguros pagados | B18: =909091+141303796+16809927+1120797 -> 160143611 | C18: =40968821+30045914+898380+27588654+53885273 -> 153387042 | D18: 313530653 | E18: =13016022+116672327+3016260+16517577 -> 149222186 | F18: =29126895+22725566+611955+24527421+49596319 -> 126588156 | G18: 275810342
A19: Otros gastos de operación | D19: 0 | G19: 0
A20: Remuneraciones de administradores, directores, síndicos y consejo de vigilancia | C20: =693330000+38115000+44667702 -> 776112702 | D20: 776112702 | E20: 0 | F20: =686070000+38115000+40607001 -> 764792001 | G20: 764792001
A21: Sueldos y Jornales | B21: =2327335118+3810161+2782391494+41286457+31900000+541926158+116776000+3682092088+1199858+64995000+1259006851+44458889+11128000+326137650+24785720 -> 11259229444 | C21: =2487576658+245123360+81135754+87990000+230352+324011685+1019066634+518452344+448725963 -> 5212312750 | D21: 16471542194 | E21: =2338258444+637486+2732751234+57312650+174674005+53136580+25370085+578916795+180555923+2835106951+96908+51480000+1259383707+53507028+338819074+34604888 -> 10714611758 | F21: =2270174511+298285239+58124428+88305000+125191+178607616+663665829+100470000+336120589+1582347+142546873+27955000+93076924+57320000 -> 4316359547 | G21: 15030971305
A22: Contribuciones Sociales | B22: =124692818+145700000+900559572+33769733+283179537+872549+283052+1600000+108949687+1973556+35815231+72813045+297449675+668626206+72911922+243092561+31543114+54678044+283416198+8442434+92041495+9942797+13157034+61713835+1754272+20535531 -> 3569513898 | C22: =46633806+66908334+483017350+22366968+166085834+60000000+2458000+5250000+54733744+17072966+168145997+54421484+85544636+986778+31229362+74039781+986778+24793387 -> 1364675205 | D22: 4934189103 | E22: =57317388+74230710+878126646+29989282+384580357+1000000+20168833+9776667+129264006+657852+61271680+89635860+147263577+506881083+66104988+168103786+26016197+78615805+303608359+12827892+103170875+1000000+39297783+22464195+71805704+3717050+33436283 -> 3320332858 | F22: =69668657+19367613+448077429+18701656+156120360+8458704+6750000+31979690+10228720+22827000+128396865+36758902+6287634+12982098+58639409+422512+22061697+613333+8050000+29562260+2120588+12807827+20855493+1666667 -> 1133405114 | G22: 4453737972
A23: Gastos del personal y capacitación | B23: =3656622+161429991+1872727+20681818+449515575+300000+391333+35779400+34093044+9753361+11173500+296053926+25279855+3552960+4620000+82915650+126649642+6840944+5543000+1150000+32970000+1995663+160000 -> 1316379011 | C23: =184244090+5451565+10329315+400000+727975+10566000+2600000+15930000+618596+25890000+159035+8500905+2103000+26745000+997783+809091+3015000+5050000+12735000+175480+3510000+13108497+2450000 -> 336116332 | D23: =+C23+B23 -> 1652495343 | E23: =43366921+240270600+111894818+155719556+2656444+31995000+26027859+1146555+39725702+8014570+274303000+18642856+9733636+11500000+48139484+141005584+4955338+22095750+181818+66255893+43635000+318180 -> 1301584564 | F23: =167341027+17001350+529330+18044909+815943+9690000+1424567+9381791+16080000+2293461+2833635+6460000+15858075+2505466+22254317+14673637+6500000+422845+15645000+763376+468000+465000+4256181+500000+2000000 -> 338207910 | G23: 1639792474
A24: Comisiones a Vendedores | B24: 1413745439 | C24: 0 | D24: =+C24+B24 -> 1413745439 | E24: 1399929103 | F24: 0 | G24: 1399929103
A25: Honorarios por servicios técnicos | B25: =10570909+293824974 -> 304395883 | C25: 0 | D25: =+C25+B25 -> 304395883 | E25: =25222723+29395953 -> 54618676 | F25: 0 | G25: 54618676
A26: Gastos de Publicidad y Propaganda | B26: 12236065663 | C26: 0 | D26: 12236065663 | E26: 16448924732 | F26: 0 | G26: 16448924732
A27: Intereses, multas y recargos impositivos | B27: 0 | C27: =440745766+529444 -> 441275210 | D27: 441275210 | E27: 0 | F27: =675717813+1641290 -> 677359103 | G27: 677359103
A28: Intereses a bancos e instituciones financieras | D28: 0 | G28: 0
A29: Depreciación bienes de uso | B29: 0 | C29: =755600629+616046477+358150215+1608451511+393407418+1229496159+91879369+417929490 -> 5470961268 | D29: 5470961268 | E29: 0 | F29: =626663664+547632451+348217799+1503493977+500876985+1495922538+231792100+529292631 -> 5783892145 | G29: 5783892145
A30: Amortización activos intangibles | B30: 0 | C30: =3760161+32337385+553669954+625539607+64372971+8164083 -> 1287844161 | D30: 1287844161 | E30: 0 | F30: =424862130+468444442+47036093+49618719 -> 989961384 | G30: 989961384
A31: Previsiones | D31: 0 | G31: 0
A32: Gastos de Distribución | B32: 4352208402 | C32: 0 | D32: 4352208402 | E32: 4012359282 | F32: 0 | G32: 4012359282
A33: Costos de Servicios prestados
A34: Otros | B34: =330084604606-310749910142+14417823441+13325784958+3297407832-331669701+3032427479-2440463038-B10-B11-B12-B15-B17-B18-B21-B22-B23-B25-B26-B32-B24-B16 -> 12699172181 | C34: =21678240157+2596390749+456549317+891506276+581568762-C10-C11-C12-C15-C16-C17-C18-C20-C21-C22-C23-C27-C29-C30 -> 3179854543 | D34: =+C34+B34 -> 15879026724 | E34: =317950623876-297341612122+19728464202+14274864098+3200292064-241317681+3634312556-2690193759-E10-E11-E12-E15-E16-E17-E18-E21-E22-E23-E24-E25-E26-E27-E29-E30-E32 -> 15912509573 | F34: =21125117627+340476497+1459492416+860464425+248138272+177924478-F10-F11-F12-F15-F16-F17-F18-F20-F21-F22-F23-F27-F29-F30 -> 4401483290 | G34: =+F34+E34 -> 20313992863
A35: Total | B35: =+SUM($B$10:B34) -> 50636005435 | C35: =+SUM($C$10:C34) -> 26204255261 | D35: =+SUM($D$10:D34) -> 76840260696 | E35: =SUM(E10:E34) -> 58515433234 | F35: =+SUM($F$10:F34) -> 24211613715 | G35: =+SUM($G$10:H34) -> 82727046949

Sheet Nota 28
A1: =Indice!C1 -> NICOLAS GONZALEZ ODDONE S.A.E.C.A | C1: ER
A3: Nota 28 - Otros Ingresos y gastos operativos
A4: Miles de guaraníes
A6: El rubro está compuesto de la siguiente forma:
A8: Otros Ingresos | E8: Otros gastos
A9: Cuentas | B9: 2020-09-30 | C9: 2019-09-30 | E9: Cuentas | F9: 2020-09-30 | G9: 2019-09-30
A10: Actividad Comercial | E10: Actividad Ganadera
A11: Créditos Recuperados | B11: 844772682 | C11: 277963947 | E11: Gastos Administrativos | F11: -563193376 | G11: -588849479
A12: Reembolso de Seguros Gr. | B12: 83121344 | C12: 223170958 | E12: Gastos de Explotación | F12: -3995786934 | G12: -3626839033
A13: Ingresos por comisiones | B13: 651901 | C13: 0 | E13: Depreciación Bienes de uso | F13: =-1423930747-450155443 -> -1874086190 | G13: =-1414742286-619209020 -> -2033951306
A14: Ingresos Varios GR. | B14: 98130230 | C14: 6787280 | E14: Amortización Licencias Informática | F14: -414204 | G14: -414205
A15: Otros ingresos Varios GR. | B15: 85122143 | C15: 28378005 | E15: Gastos de Ventas | F15: -33750400 | G15: -141878272
A16: Diferencias de Inventarios | B16: 152596776 | C16: 60938229 | E16: Gastos de Ventas Capitalización | F16: -348582194 | G16: -1495553709
A17: Ingresos por servicios de Logística | B17: 916771818 | C17: 632759865 | E17: Diferencias de Cambios Act. Ganad. | F17: -28224537 | G17: -13290834
A18: Ingresos varios de logística | B18: 25507347 | C18: 24004271 | E18: Total | F18: =SUM(F11:F17) -> -6844037835 | G18: =SUM(G11:G17) -> -7900776838
A19: Ingresos varios de T.I | B19: 17509799 | C19: 0
A20: Fletes cobrados | B20: 12509357 | C20: 37850862
A21: Desafectación de Mercad. y Rep c/Obsol. | B21: =3267689301+3847207127+182029347+2792563 -> 7299718338 | C21: =730938924+35300518+173646704+1004748 -> 940890894
A22: Otros ingresos Varios de ventas | B22: 86291136 | C22: 139429589
A23: Ingresos varios GR.de ventas | B23: 819746232 | C23: 855564574
A24: Publicidad cobrada | B24: 986102920 | C24: 940713048
A25: Aporte publicitario del Exterior | B25: 829450716 | C25: 691342570
A26: Ingresos varios de Marketing | B26: 40634650 | C26: 4500000
A27: Otros Ingresos varios GR-repuestos | B27: 24110014 | C27: 1825498
A28: Servicio de Delivery - Repuestos | B28: 1698668 | C28: 7359029
A29: Servicio de Delivery - ST | B29: 141007834 | C29: 167408390
A30: Ingresos por servicios varios ST | B30: 102761784 | C30: 0
A31: Otros ingresos varios ST | B31: 17668193 | C31: 624350207
A32: Otros ingresos varios Gr ST | B32: 1582500 | C32: 0
A33: Ingresos por acuerdos comerciales | B33: 443438021 | C33: 0
A34: Ingresos extraordinarios -devoluc.der.Aduan. | B34: 128974090 | C34: 0
A35: Ingresos varios Avion | B35: 32734372 | C35: 0
A36: Total Otros Ingresos Act. Comerc. | B36: =SUM(B11:B35) -> 13192612865 | C36: =SUM(C11:C35) -> 5665237216
A38: Actividad Ganadera
A39: Resultados vta. Activo fijo act. ganadera | B39: 0 | C39: 19090909
A40: Ingresos Varios | B40: 14065443 | C40: 10393580
A41: Diferencias de Cambios | B41: 1738355 | C41: 5325363
A42: Valor Neto de Realización | B42: 1143174233 | C42: 6725825568
A43: Total Otros Ingresos Act.Ganad. | B43: =SUM($B$40:B42) -> 1158978031 | C43: =SUM($C$39:C42) -> 6760635420
A44: Total General Otros Ingresos | B44: =+B36+B43 -> 14351590896 | C44: =C36+C43 -> 12425872636
A47: Nota 28.1 - Otros Ingresos y gastos no operativos
C48: ER
A50: El rubro está compuesto de la siguiente forma:
A52: Cuentas | B52: 2020-09-30 | C52: 2019-09-30
A53: Alquileres ganados | B53: 1276982368 | C53: 1143585441
A54: Otros ingresos de Inversiones Inmob. | B54: 23003640 | C54: 26507955
A55: Ipuesto Inmobiliario | B55: -73626456 | C55: -86424820
A56: Impuesto Inmobiliario no ded. | B56: -7320056 | C56: -663802
A57: Patentes y tasas municipales | B57: -123722761 | C57: -90439778
A58: Impuestos, patentes y tasas munic. No ded. | B58: -7670500 | C58: -10982646
A59: Depreciaciones Edificios de Invers. | B59: -293620277 | C59: -356503830
A60: Mant. y reparación de edificios de Invers. | B60: -868181 | C60: -39181819
A61: Seguros de Edificios de invers. | B61: -4314986 | C61: -3858728
A62: Gastos varios de Invers. | B62: -169344996 | C62: -216884723
A63: Gastos varios de Invers. Gnd | B63: -22357206 | C63: -15452270
A64: Servicios de seguridad. | B64: -143981813 | C64: -50779997
A65: Malos créditos de Invers. Inmob. | B65: 0 | C65: -86825000
A66: Pérdida en vta. Bienes de uso | B66: 0 | C66: -30118543
A67: Pérdida por Siniestros | B67: 0 | C67: -443712
A68: Total | B68: =SUM($B$53:B65) -> 453158776 | C68: =SUM($C$53:C67) -> 181533728
A71: Cuentas | B71: 2020-09-30 | C71: 2019-09-30
A72: Resultado de ejercicios anteriores | B72: -514464 | C72: -16362216
A73: Total | B73: =+B72 -> -514464 | C73: =+C72 -> -16362216
A74: Total General Otros Resultados no operativos | B74: =+B68+B73 -> 452644312 | C74: =+C68+C72 -> 165171512

Sheet Nota 29
A1: =Indice!C1 -> NICOLAS GONZALEZ ODDONE S.A.E.C.A | C1: ER
A3: NOTA 29 - INGRESOS Y GASTOS FINANCIEROS NETOS
A4: Miles de guaraníes
A6: El rubro está compuesto de la siguiente forma:
A8: Ingresos Financieros Netos | E8: Gastos Financieros netos
A9: Cuentas | B9: 2020-09-30 | C9: 2019-09-30 | E9: Cuentas | F9: 2020-09-30 | G9: 2019-09-30
A10: Intereses Cajas de ahorro | B10: 199658915 | C10: 199868640 | E10: Intereses y com. Bancarios | F10: -10344457 | G10: -19871456
A11: Diferencias de Cambios GR. Financ. | B11: 21237549682 | C11: 19715653181 | E11: Intereses y com.S/Prest.Bancarios | F11: -1265515567 | G11: -2214877083
A12: Intereses p/ Refinanciaciones Grav. | B12: 3087974999 | C12: 2249158537 | E12: Interes y com. Banc. No deduc. | F12: 0 | G12: -376200
A13: Intereses Cobrados | B13: 85312677 | C13: 0 | E13: Diferencias de cambios GR.Gtos. Financ. | F13: -11468976965 | G13: -15136779520
A14: Intereses p/ Vta. A credito Grav. | B14: 344774073 | C14: 0 | E14: Diferencias de cambios Gtos. Financ. | F14: -996030 | G14: 0
A15: Total ingresos financieros | B15: =SUM($B10:B14) -> 24955270346 | C15: =SUM(C10:C14) -> 22164680358 | E15: Total gastos financieros | F15: =SUM(F10:F14) -> -12745833019 | G15: =SUM(G10:G14) -> -17371904259
F17: =1275860024+11469972995 -> 12745833019 | G17: =2235124739+15136779520 -> 17371904259
A21: NOTA 29.1 - INGRESOS Y GASTOS DE INVERSIONES FINANCIERAS
C22: ER
A23: El rubro está compuesto de la siguiente forma:
A25: Ingresos de Inversión Financiera | E25: Gastos de Inversión Financiera
A26: Cuentas | B26: 2020-09-30 | C26: 2019-09-30 | E26: Cuentas | F26: 2020-09-30 | G26: 2019-09-30
A27: Intereses por Inversiones financieras | B27: 1863181585 | C27: 1329102812 | E27: Intereses y com. Por invers. Financieras | F27: -560800 | G27: 0
A28: Total Ingresos de Inv. Financ. | B28: =SUM(B27) -> 1863181585 | C28: =SUM(C27) -> 1329102812 | E28: Pérdidas por valuacion | F28: -170066289 | G28: 0
E29: Intereses y com.p/Invers. Financ. EX | F29: -18576250 | G29: 0
E30: Intereses y com. Pag. p/Invers.en bonos | F30: 0 | G30: -70992581
E31: Total Gatos de Inv. Financiera | F31: =SUM(F27:F30) -> -189203339 | G31: =SUM(G27:G30) -> -70992581

Sheet Nota 30
A1: =Indice!C1 -> NICOLAS GONZALEZ ODDONE S.A.E.C.A | C1: ER
A3: Nota 30 - Resultado de inversiones en asociadas
A4: Miles de guaraníes
A7: Resultado de inversiones en asociadas
A8: (Detallar cuenta) | B8: 2020-09-30 | C8: 2019-09-30
A12: Total
B13: =-C13 -> 0 | C13: 0
A14: El resultado de las inversiones en las empresas asociadas, son reconocidas al cierre de año, aplicando el VPP.

Sheet Nota 31
A1: =Indice!C1 -> NICOLAS GONZALEZ ODDONE S.A.E.C.A | C1: ER
A3: Nota 31 - Resultado participación minoritaria
A4: Miles de guaraníes
A5: NO APLICA
A7: Resultado participación minoritaria | B7: 2020-09-30 | C7: 2019-09-30
A8: (Detallar cuenta)
A15: Total | B15: 0 | C15: 0

Sheet Nota 32
A1: =Indice!C1 -> NICOLAS GONZALEZ ODDONE S.A.E.C.A | C1: ER
A3: Nota 32 - IMPUESTO A LA RENTA
A4: En miles de guaraníes
A6: Cuentas | B6: 2020-09-30 | C6: 2019-09-30
A7: Impuesto a la renta | B7: 8264960554 | C7: 6098483608
A8: Impuesto a la renta adic. p/ distrib. Utilid. | B8: 0 | C8: 971108807
A9: Total | B9: =SUM($B7:B8) -> 8264960554 | C9: =SUM($C7:C8) -> 7069592415

Sheet Nota 33
A1: =Indice!C1 -> NICOLAS GONZALEZ ODDONE S.A.E.C.A | C1: ER
A3: Nota 33 - Resultado extraordinario neto de impuesto a la renta
A4: En miles de guaraníes
A5: NO APLICA
B6: 2020-09-30 | C6: 2019-09-30
A7: Conceptos
A8: (Detallar)
A14: Total | B14: =SUM($B7:B13) -> 0 | C14: =SUM($C7:C13) -> 0

Sheet Nota 34
A1: =Indice!C1 -> NICOLAS GONZALEZ ODDONE S.A.E.C.A | C1: ER
A3: Nota 34 - Resultado sobre actividades discontinuadas neto de impuesto a la renta
A4: En miles de guaraníes
A5: NO APLICA
A6: Resultado sobre actividades discontinuadas neto de impuesto a la renta | B6: 2020-09-30 | C6: 2019-09-30
A8: (nueva cuenta a incluir)
A9: Subtotal
A10: - Impuesto a la renta
A11: Total | B11: =SUM($B7:B10) -> 0 | C11: =SUM($C7:C10) -> 0

Sheet Nota 35
A1: =Indice!C1 -> NICOLAS GONZALEZ ODDONE S.A.E.C.A | C1: ER | E1: ER
A3: NOTA 35- UTILIDAD (PÉRDIDA) NETA DEL AÑO Y POR ACCION ORDINARIA
A5: Cuentas | B5: 2020-09-30 | C5: 2019-09-30
A6: Cantidad de Acciones Ordinarias Nominativas Clase A | B6: =3792182 -> 3792182 | C6: 1791010
A7: Cantidad de Acciones Ordinarias Nominativas Clase B | B7: 1355574 | C7: 640224
A8: Cantidad de Acciones Preferidas Nominativas Clase C | B8: 1201220 | C8: 567324
A9: Total Acciones | B9: =SUM(B6:B8) -> 6348976 | C9: =SUM(C6:C8) -> 2998558
A10: Utilidad Neta | B10: =ER!C36 -> 67413551673 | C10: =ER!D36 -> 52663890125
A11: Utilidad Neta por Acción Ordinaria | B11: =IFERROR(B10/B9,0) -> 10618.01961 | C11: =IFERROR(C10/C9,0) -> 17563.07202
A13: La Sociedad calcula la utilidad neta por acción sobre la base de la utilidad del año y el total de acciones ordinarias integradas con valor nominal de G. 100.000 cada una.Las acciones ordinarias nominativas clase A tienen derecho a 5 votos, las acciones ordinarias nominativas clase B tienen derecho a 4 votos, en tanto que las acciones preferidas nominativas clase C tienen derecho a Rest. de 1 voto.

Sheet Nota 36
A1: =Indice!C1 -> NICOLAS GONZALEZ ODDONE S.A.E.C.A | D1: Indice
A3: NOTA 36 - ACTIVOS GRAVADOS
A4: NO APLICA
A5: Los siguientes bienes de propiedad de la Sociedad han sido hipotecados y prendados en garantía de obligaciones financieras.
A7: =IFERROR("Al "&DAY(Indice!B3)&" de "&VLOOKUP(MONTH(Indice!B3),Indice!S:T,2,0)&" de "&YEAR(Indice!B3-365),"Al dia... de mes… de año 2XX1…") -> Al dia... de mes… de año 2XX1…
A8: Tipo de Activo | B8: Datos del activo gravado | C8: Tipo de garantía | D8: Importe (indicar moneda) | E8: A favor de
A14: =IFERROR("Al "&DAY(Indice!B3)&" de "&VLOOKUP(MONTH(Indice!B3),Indice!S:T,2,0)&" de "&YEAR(Indice!B3-1),"Al dia... de mes… de año 2XX2…") -> Al dia... de mes… de año 2XX2…
A15: Tipo de Activo | B15: Datos del activo gravado | C15: Tipo de garantía | D15: Importe (indicar moneda) | E15: A favor de

Sheet Nota 37
A1: =Indice!C1 -> NICOLAS GONZALEZ ODDONE S.A.E.C.A | D1: Indice
A3: NOTA 37 - CONTINGENCIAS Y COMPROMISOS
A5: NO APLICA
A6: (Esta nota debería incluir un breve detalle de contratos con terceros, vigente a la fecha de cierre del ejercicio, cuyo incumplimiento o cláusula específica podrían generar obligaciones contingentes para el cliente).
A7: =IFERROR("Los principales contratos suscriptos por la Sociedad, vigentes al "&DAY(Indice!B3)&" de "&VLOOKUP(MONTH(Indice!B3),Indice!S:T,2,0)&" de "&YEAR(Indice!B3-1)&" son:","Los principales contratos suscriptos por la Sociedad, vigentes al … de … 20X2 son:") -> Los principales contratos suscriptos por la Sociedad, vigentes al … de … 20X2 son:
A8: a)
A9: b)
A12: =IFERROR("Al "&DAY(Indice!B3)&" de "&VLOOKUP(MONTH(Indice!B3),Indice!S:T,2,0)&" de "&YEAR(Indice!B3-1)&" no existen situaciones contingentes, ni reclamos que pudieran resultar en la generación de obligaciones para la Sociedad adicionales a las que se presentan en estos estados financieros.","Al … de …………... 20X2 no existen situaciones contingentes, ni reclamos que pudieran resultar en la generación de obligaciones para la Sociedad adicionales a las que se presentan en estos estados financieros.") -> Al … de …………... 20X2 no existen situaciones contingentes, ni reclamos que pudieran resultar en la generación de obligaciones para la Sociedad adicionales a las que se presentan en estos estados financieros.
A16: Obs.: Esta información debe estar ajustada a lo requerido por la Norma de Información Financiera N° 5 Contingencias y sucesos que ocurren después de la fecha del balance.

Sheet Nota 38
A1: =Indice!C1 -> NICOLAS GONZALEZ ODDONE S.A.E.C.A | D1: Índice
A3: NOTA 38 - IMPUESTO DIFERIDO
A4: En miles de guaraníes
A6: NO APLICA
A7: Al … de …........... 20X2 la Sociedad constituyó una provisión para impuesto a la renta de Guaraníes …... (Al … de …...............20X1: Guaraníes …....) / (La Sociedad no ha constituido provisión para impuesto a la renta, debido a que a esa fecha la misma generó renta imponible que fue compensada con quebrantos impositivos acumulados a esa fecha).
A8: La Sociedad contabiliza el impuesto a la renta por el método de lo diferido, método del pasivo. El mencionado método establece la determinación de activos o pasivos impositivos diferidos netos basados en las diferencias temporales y temporarias, con cargo a la línea Impuesto a la renta del Estado de resultados.
A10: El siguiente cuadro detalla las diferencias temporales a la tasa del impuesto a los efectos de determinación del impuesto diferido:
B12: 2020-09-30 | C12: 2019-09-30
A13: Activos y pasivos impositivos diferidos:
A14: Caja y Bancos
A15: Inversiones
A16: Previsión para deudores incobrables
A17: Bienes de uso
A18: Activos intangibles
A19: Previsión del pasivo
A20: Deudas comerciales y bancarias
A21: Bienes de cambio
A22: Sub - total
A23: Previsión para impuestos diferidos netos
A24: Total activo/pasivo impositivo diferido neto antes de quebrantos
A25: Quebranto impositivo
A26: Total

Sheet Nota 39
A1: =Indice!C1 -> NICOLAS GONZALEZ ODDONE S.A.E.C.A | C1: Indice
A4: NOTA 39 - HECHOS POSTERIORES
A5: Se ha propagado en Paraguay y en el mundo el virus denominado coronavirus COVID-19 que ha sido calificado como una pandemia por la organización mundial de la salud el 11 de marzo de 2020, impactando significativamente en el tercer trimestre de 2020, entre otros, las condiciones económicas, los negocios y a los consumidores.

Sheet Nota 40
A1: =Indice!C1 -> NICOLAS GONZALEZ ODDONE S.A.E.C.A | C1: Indice
A3: NOTA 40 - SALDOS Y TRANSACCIONES CON PARTES RELACIONADAS
A4: Miles de guaraníes
A6: Activo | B6: 2020-09-30 | C6: 2019-09-30
A7: Cuentas a Cobrar
A8: Agropecuaria cuatro vientos S.A adeuda a NGO, al 30/09/2020 | B8: 0 | C8: 0
A9: por compras de mercaderías la suma de Gs. | B9: 0
A11: Todo Franquicia S.A adeuda a NGO, al 30/09/2020 , por
A12: compras de mercaderías la suma de Gs. | B12: 25860505551 | C12: 16414426640
A14: Confort para el Hogar adeuda NGO, al 30/09/2020 por
A15: compras de mercaderias y préstamos la suma de Gs. | B15: 11107292108 | C15: 16825937774
A17: Estirpe Guaraní S.A adeuda a NGO, al 30/09/2020 por
A18: compras de mercaderías la suma de Gs. | B18: 37314265 | C18: 457190489
A20: Monday S.A Inmobiliaria adeuda a NGO, al 30/09/2020 por
A21: compras de mercaderías la suma de Gs. | B21: 17352834 | C21: 0
A23: Agropecuaria cuatro vientos adeuda a NGO al 30/06/2020 por
A24: compras de mercaderías, repuestos y servicio técnico
A25: la suma de Gs | B25: 0
A27: M. Montserrat González
A28: * Productos | B28: 1937977 | C28: 0
A30: Mauro Esteban González
A31: * Productos | B31: 131002 | C31: 0
A33: Sara Comercial Villamorra S.A
A34: * Productos | B34: 3164411965 | C34: 0
A36: Nicolas V. González
A37: * Productos | B37: 17008835 | C37: 613575
A39: Gisela González de Fúster | B39: 784353 | C39: 0
A40: * Productos
A42: Beatriz Eugenia González de Bosio | B42: 4305110 | C42: 0
A43: * Producto
A45: Juan José Bosio González | B45: 5642171
A46: *Producto
A48: Inversiones Mobiliarias Permanentes
A49: NGO SAECA, es socio Fundador de la sociedad
A50: TODO FRANQUICIA S.A, el capital social de la firma,
A51: por asamblea extraordinaria en abril de 2011, aumentó
A52: a la suma de cincuenta millones de guaranés. Por lo tanto
A53: la participación de NGO SAECA (99%), en dicha sociendad.
A54: La integracón a la fecha asciende a Gs. 17.477.000.000 | B54: =14978000000+2499000000-13562288144 -> 3914711856 | C54: =14978000000+2499000000-8201568617 -> 9275431383
A56: NGO SAECA, es socio fundador de lasociedad CONFORT
A57: PARA EL HOGAR - CPH S.A, el capital social de la firma
A58: según escritura de constitución de fecha 04 de marzo de
A59: 2014 es de cincuenta millomes de guaraníes. Por tanto la
A60: participación de NGO SAECA (99%) en dicha sociedad, es
A61: cuarenta y nueve mil quinientos millones de guaraníes
A62: (49500000).
A63: La integración actual asciende a Gs. 45.006.000.000 | B63: =27490000000+17516000000-16707174425 -> 28298825575 | C63: =19768000000+25238000000-26798512965 -> 18207487035
A65: Ingresos
A66: Ingresos por alquiler de uno de sus inmuebles de
A67: inversión a la empresa Compañía Internacional de
A68: comercio S.R.L (CIDECOM SRL Propiedad de los accionistas
A69: mayoritarios de la sociedad) | B69: 16500000 | C69: 49250000
A71: Ingresos por alquiler de uno de sus inmuebles de inversion
A72: a la empresa Todo Franquicia S.A | B72: 181814547 | C72: 90000000
A74: Ingresos por alquiler de uno de sus inmubles a la empresa
A75: Estirpe Guaraní | B75: 15275627 | C75: 23223813
A77: Egresos
A78: Todo Franquicia S.A
A79: Gastos de publicidad | B79: 27530682 | C79: 57545452
A80: Total activo | B80: =SUM(B7:B79) -> 72671344458 | C80: =SUM(C7:C79) -> 61401106161

Sheet Base de Monedas
A1: PYG | B1: Guaraní | C1: Índice
A2: USD | B2: Dólar estadounidense
A3: EUR | B3: Euro
